Cogmind - Beta 14 @@@ ROGUE MODE // 2025.01.15 @ 09:08:22 Player: Dosh Result: Escaped! Performance ------------- Evolutions (9) 4500 Regions Visited (39) 7800 Robots Destroyed (412) 2060 Value Destroyed (27499) 27499 Prototype IDs (62) 1240 Alien Tech Used (0) 0 Bonus (27040) 27040 TOTAL SCORE: 70139 Bonus ------- High Alert Combat Kills 2294 Follower Combat Kills 13976 Entered Garrisons 2600 Used RIF Installer 8000 Aligned with FarCom 300 Win 3000 Friendly Fire -3130 Cogmind --------- Core Integrity 1570/1600 Matter 220/300 Energy 669/690 System Corruption 4% Temperature Cool (-139) Movement Treading (161) Location To Epsilon Eridani Parts ------- > --- POWER (3) -------- Quantum Reactor Quantum Reactor Light Quantum Reactor > --- PROPULSION (6) --- Armored Heavy Treads Armored Heavy Treads Biometal Heavy Treads > --- UTILITY (14) ----- Improved Cryofiber Web Advanced Heat Sink Advanced Cooling System Huge Storage Unit Experimental Targeting Computer Quantum Capacitor Advanced Force Field Relay Coupler [NC] (31) Relay Coupler [C] (28) Relay Coupler [Sentry] (7) Relay Coupler [Specialist] (1) Relay Coupler [Hunter] (6) Relay Coupler [Heavy] (5) > --- WEAPON (2) ------- Enhanced Nova Cannon Advanced Remote Datajack > --- INVENTORY (25) --- Quantum Reactor Medium Treads Medium Treads Advanced Heat Sink Advanced Cooling System Advanced Coolant Injector Layered Medium Armor Plating Advanced Force Field Authchip [R/NC] Relay Coupler [NC] (33) Relay Coupler [C] (69) Relay Coupler [Sentry] (28) Relay Coupler [Sentry] (29) Relay Coupler [Behemoth] (15) Relay Coupler [Proto] (9) Compact HERF Cannon Enhanced Nova Cannon Micro-nuke Launcher Advanced Remote Datajack Field Lobotomy Kit (2) Peak State ------------ > --- POWER ------------ Quantum Reactor Quantum Reactor Quantum Reactor > --- PROPULSION ------- Armored Heavy Treads Armored Heavy Treads Biometal Heavy Treads > --- UTILITY ---------- Improved Cryofiber Web Advanced Heat Sink Advanced Heat Sink Advanced Cooling System Advanced Coolant Injector Huge Storage Unit Experimental Targeting Computer Quantum Capacitor Layered Medium Armor Plating Advanced Force Field Relay Coupler [NC] Relay Coupler [C] Relay Coupler [Sentry] > --- WEAPON ----------- Enhanced Nova Cannon Advanced Remote Datajack > --- INVENTORY -------- Quantum Reactor Quantum Reactor Medium Treads Medium Treads Advanced Cooling System Advanced Force Field Authchip [R/NC] Relay Coupler [NC] Relay Coupler [C] Relay Coupler [C] Relay Coupler [C] Relay Coupler [C] Relay Coupler [Sentry] Relay Coupler [Sentry] Relay Coupler [Specialist] Relay Coupler [Hunter] Relay Coupler [Behemoth] Relay Coupler [Proto] Compact HERF Cannon Enhanced Nova Cannon Micro-nuke Launcher Advanced Remote Datajack Field Lobotomy Kit [Rating: 184] Favorites ----------- Power Quantum Reactor Engine F-cell Engine Power Core Light Nuclear Core Reactor Quantum Reactor Propulsion Light Treads Treads Light Treads Utility Huge Storage Unit Device Quantum Capacitor Storage Huge Storage Unit Processor Advanced Targeting Computer Hackware Relay Coupler [Sentry] Protection Improved Medium Armor Plating Weapon Plasma Cannon Energy Gun Medium Laser Energy Cannon Plasma Cannon Ballistic Gun Assault Rifle Ballistic Cannon Antimatter Cannon Launcher YI-UF0's Doublenader Special Weapon Improved Remote Datajack Build | -11 -10 -10 -9 -9 -9 -8 -8 -8 -8 -8 -7 -7 -7 -7 -7 -7 -7 -7 -6 -6 -6 -6 -6 -6 -5 -5 -5 -5 -5 -5 -5 -5 -4 -4 -3 -3 -2 -2 -1 ------- Run | Yrd Mat Min Mat Min Exi Min Mat Gar Mat Gar Fac Was Fac Gar Fac Gar Fac Gar Fac Was Fac Gar Fac Gar Fac Was Fac Gar Fac Gar Fac Gar Fac Gar Res Gar Res Gar Acc Slots Evolved 18 | . . . 2 . . . 2 . . . 2 . . . . . . . 2 . . . . . 2 . . . . . . . 2 . 2 . 2 . 2 Power 2 | . . . . . . . . . . . . . . . . . . . 1 . . . . . . . . . . . . . . . 1 . . . . Propulsion 4 | . . . 1 . . . . . . . 1 . . . . . . . . . . . . . . . . . . . . . . . . . 2 . . Utility 12 | . . . 1 . . . 2 . . . 1 . . . . . . . 1 . . . . . 2 . . . . . . . 2 . 1 . . . 2 Weapon . | . . . . . . . . . . . . . . . . . . . . . . . . . . . . . . . . . . . . . . . . Parts Attached 530 | 6 10 5 16 3 2 1 25 18 15 35 2 14 15 9 13 22 20 16 17 10 32 36 10 22 11 8 1 8 4 19 3 21 8 20 3 4 9 16 21 Power 34 | 1 . . 2 . . . 1 1 . 2 . 2 . . . 2 . . 3 1 . 2 . . . 4 . 2 . 3 . . . 2 1 . . 1 4 Engine 9 | 1 . . 1 . . . 1 1 . 1 . . . . . . . . 1 1 . . . . . . . 1 . 1 . . . . . . . . . Core 2 | . . . 1 . . . . . . 1 . . . . . . . . . . . . . . . . . . . . . . . . . . . . . Reactor 23 | . . . . . . . . . . . . 2 . . . 2 . . 2 . . 2 . . . 4 . 1 . 2 . . . 2 1 . . 1 4 Propulsion 54 | 2 3 1 3 . . . 8 3 1 7 1 5 . . . . 2 . 1 1 . 1 . 1 3 2 . 1 . 1 . 1 . 1 1 . 3 1 . Treads 54 | 2 3 1 3 . . . 8 3 1 7 1 5 . . . . 2 . 1 1 . 1 . 1 3 2 . 1 . 1 . 1 . 1 1 . 3 1 . Leg . | . . . . . . . . . . . . . . . . . . . . . . . . . . . . . . . . . . . . . . . . Wheel . | . . . . . . . . . . . . . . . . . . . . . . . . . . . . . . . . . . . . . . . . Hover . | . . . . . . . . . . . . . . . . . . . . . . . . . . . . . . . . . . . . . . . . Flight . | . . . . . . . . . . . . . . . . . . . . . . . . . . . . . . . . . . . . . . . . Utility 249 | 1 3 . 3 2 1 . 9 3 3 14 1 4 6 5 8 13 6 10 6 4 14 24 4 16 4 2 1 4 3 14 3 17 7 12 1 3 3 7 8 Device 107 | . 1 . 1 1 . . 2 1 1 8 . 2 2 4 4 7 4 3 3 3 7 10 1 4 2 1 . 2 1 5 1 7 2 7 1 1 1 3 4 Storage 5 | 1 1 . . . 1 . . . . . . . 1 . . . . . . . . . . . . . . . . . . . 1 . . . . . . Processor 6 | . 1 . . . . . 1 . . . . . . 1 . 1 . . . . . 1 . . . . . . . . . . . . . . . . 1 Hackware 87 | . . . . . . . . 1 1 3 . 1 2 . 2 4 2 5 3 . 5 9 3 8 1 . 1 2 2 8 2 9 4 3 . . 1 2 3 Protection 44 | . . . 2 1 . . 6 1 1 3 1 1 1 . 2 1 . 2 . 1 2 4 . 4 1 1 . . . 1 . 1 . 2 . 2 1 2 . Artifact . | . . . . . . . . . . . . . . . . . . . . . . . . . . . . . . . . . . . . . . . . Weapon 193 | 2 4 4 8 1 1 1 7 11 11 12 . 3 9 4 5 7 12 6 7 4 18 9 6 5 4 . . 1 1 1 . 3 1 5 . 1 3 7 9 Energy Gun 2 | 1 1 . . . . . . . . . . . . . . . . . . . . . . . . . . . . . . . . . . . . . . Energy Cannon 105 | . . . 5 . 1 . 6 6 7 7 . 1 5 2 2 5 8 4 3 2 8 5 3 3 2 . . 1 . 1 . 3 . 3 . . 2 4 6 Ballistic Gun 8 | 1 3 2 1 . . . . 1 . . . . . . . . . . . . . . . . . . . . . . . . . . . . . . . Ballistic Cannon 6 | . . . . . . . . . . . . . 1 . . . . . . . 3 1 . . 1 . . . . . . . . . . . . . . Launcher 22 | . . 2 2 1 . 1 1 4 2 4 . . . 2 1 . 1 1 . . . . . . . . . . . . . . . . . . . . . Special Weapon 50 | . . . . . . . . . 2 1 . 2 3 . 2 2 3 1 4 2 7 3 3 2 1 . . . 1 . . . 1 2 . 1 1 3 3 Impact Weapon . | . . . . . . . . . . . . . . . . . . . . . . . . . . . . . . . . . . . . . . . . Slashing Weapon . | . . . . . . . . . . . . . . . . . . . . . . . . . . . . . . . . . . . . . . . . Piercing Weapon . | . . . . . . . . . . . . . . . . . . . . . . . . . . . . . . . . . . . . . . . . Special Melee Weapon . | . . . . . . . . . . . . . . . . . . . . . . . . . . . . . . . . . . . . . . . . Unidentified Prototypes 5 | . . 1 1 . . . 1 . . . . . 1 . . . . . 1 . . . . . . . . . . . . . . . . . . . . Parts Lost 50 | . 3 . 2 1 . . 6 2 1 9 . . . 1 . . . 1 . . 1 3 3 5 2 . . . . 1 . 1 1 1 . . . 5 1 Power 7 | . . . 1 . . . . 1 . 2 . . . . . . . . . . . 1 . . . . . . . . . . . . . . . 1 1 Propulsion 12 | . 2 . . . . . 1 . . 4 . . . . . . . . . . . . . 1 2 . . . . 1 . . . . . . . 1 . Utility 27 | . . . 1 1 . . 4 1 1 3 . . . 1 . . . 1 . . 1 2 3 3 . . . . . . . 1 1 . . . . 3 . Weapon 4 | . 1 . . . . . 1 . . . . . . . . . . . . . . . . 1 . . . . . . . . . 1 . . . . . Highest Loss Streak 5 | . 1 . 1 1 . . 5 1 1 3 . . . 1 . . . 1 . . 1 2 3 3 1 . . . . 1 . 1 1 1 . . . 5 1 To Critical Strikes 1 | . . . . . . . . . . . . . . . . . . . . . . . . . 1 . . . . . . . . . . . . . . Average Slot Usage (%) 86 | . 93 99 98 100 100 100 95 99 99 98 90 68 73 76 76 83 83 80 79 67 83 84 82 82 85 87 82 81 81 80 81 80 82 82 82 84 82 80 83 Engine 4 | . 14 14 10 11 11 11 9 8 9 6 . . . . . . . . 4 6 6 2 . . . . . . 5 5 5 5 5 1 . . . . . Reactor 5 | . . . . . . . . . . . . 2 7 7 7 7 7 7 7 6 6 10 13 13 11 11 11 9 5 5 5 5 5 8 12 14 13 12 11 Treads 17 | . 24 27 33 33 33 33 26 27 27 26 30 20 15 15 15 15 14 15 13 13 13 13 13 12 14 16 11 11 11 11 11 11 10 10 9 9 13 13 12 Device 13 | . 1 . 9 11 11 11 10 17 14 12 15 3 12 13 20 12 8 12 10 5 12 9 10 4 11 11 11 9 16 15 16 16 19 21 21 21 17 21 22 Storage 7 | . 14 14 11 11 11 11 9 9 9 9 7 7 7 7 7 7 7 7 6 6 6 6 6 6 5 5 5 5 5 5 5 5 5 5 4 4 4 4 4 Processor 2 | . 10 14 1 . . . 9 9 9 5 . . . 1 . . . . . . . . . . . . . . . . . . . . . . . . 3 Hackware 11 | . . . . . . . . 7 9 8 . 3 7 7 . 13 21 15 15 7 20 16 13 17 17 17 17 19 17 17 17 16 21 21 19 19 18 15 18 Protection 6 | . . . 9 11 11 11 12 1 3 8 13 7 7 7 8 10 7 6 6 5 3 11 10 13 9 11 11 9 5 5 5 4 5 3 4 5 6 3 2 Energy Cannon 9 | . . . 18 13 21 11 17 17 17 17 15 7 10 14 13 12 12 14 6 12 6 5 7 11 5 5 5 5 5 5 5 4 5 5 4 4 4 4 3 Ballistic Gun 1 | . 24 20 2 . . . . . . . . . . . . . . . . . . . . . . . . . . . . . . . . . . . . Special Weapon 2 | . . . . . . . . . . . . 7 1 . . 2 2 . 5 . 1 1 1 1 2 5 5 5 5 5 5 5 5 4 4 4 4 4 4 Peak Build Rating 184 | 6 9 13 22 24 26 27 38 36 37 41 43 78 75 73 73 78 76 78 84 93 85 106 106 96 109 108 108 122 117 123 122 122 134 140 153 156 175 176 184 Average Rating 81 | 4 7 8 18 22 24 26 30 34 35 36 42 64 71 71 70 72 71 72 81 88 80 95 98 92 102 93 108 111 116 117 118 118 129 133 148 152 168 172 181 On Entrance 79 | . 6 8 10 21 24 26 27 33 36 36 40 42 78 72 72 70 75 76 71 77 90 82 104 85 95 88 108 108 117 117 119 114 120 130 136 153 153 175 173 Naked Turns . | . . . . . . . . . . . . . . . . . . . . . . . . . . . . . . . . . . . . . . . . Heaviest Build 197 | 13 31 30 44 48 66 68 72 69 74 86 92 113 151 139 141 140 140 140 143 165 148 146 144 143 140 157 156 166 143 143 143 143 155 163 193 197 190 190 192 Greatest Support 225 | 40 40 40 60 60 60 60 60 60 60 60 80 140 140 140 140 140 140 140 140 140 140 140 140 140 140 140 140 145 145 145 145 150 150 150 150 150 225 210 195 Greatest Overweight (x) 2 | . 1 . . . 1 1 1 1 1 1 1 1 1 . 1 . 1 . 1 1 1 1 1 1 1 2 1 1 . . . . 1 1 1 1 . . . Average Overweight (x) . | . . . . . . 1 1 . . 1 1 . . . . . . . . . . . . . . 1 1 . . . . . . . 1 1 . . . Largest Inventory Capacity 25 | 8 15 15 15 15 20 20 20 20 20 20 20 20 25 25 25 25 25 25 25 25 25 25 25 25 25 25 25 25 25 25 25 25 25 25 25 25 25 25 25 Average Capacity 22 | 6 13 15 15 15 18 20 20 20 20 20 20 20 24 25 25 25 25 25 25 25 25 25 25 25 25 25 25 25 25 25 25 25 25 25 25 25 25 25 25 Most Carried 25 | . 7 15 15 15 17 18 20 20 20 20 20 20 25 25 25 25 25 25 25 25 25 25 23 25 24 25 25 25 25 25 25 25 25 25 25 25 25 25 25 Average Carried 21 | . 5 10 14 14 15 17 19 19 19 18 19 19 21 23 23 24 24 24 24 24 22 23 22 23 23 23 25 24 24 24 24 24 21 24 24 23 21 24 21 Final Capacity 25 | 8 15 15 15 15 20 20 20 20 20 20 20 20 25 25 25 25 25 25 25 25 25 25 25 25 25 25 25 25 25 25 25 25 25 25 25 25 25 25 25 Final Carried 25 | . 7 15 14 14 17 18 20 20 19 20 20 20 25 25 23 25 25 25 23 25 24 23 23 25 23 25 25 25 25 25 25 25 21 25 24 25 25 25 20 Class Distribution -------------------- 54% | Botlord-Mutant 25% | Mutant 12% | Bothacker-Mutant 4% | Commander-Mutant Dominant Class ---------------- Mutant | -10/Materials Mutant | -10/Mines Mutant | -9/Materials Mutant | -9/Mines Mutant | -9/Exiles Mutant | -8/Mines Mutant | -8/Materials Mutant | -8/Garrison Mutant | -8/Materials Bothacker-Mutant | -8/Garrison Bothacker-Mutant | -7/Factory Bothacker-Mutant | -7/Waste Bothacker-Mutant | -7/Factory Bothacker-Mutant | -7/Garrison Bothacker-Mutant | -7/Factory Botlord-Mutant | -7/Garrison Botlord-Mutant | -7/Factory Botlord-Mutant | -7/Garrison Botlord-Mutant | -6/Factory Botlord-Mutant | -6/Waste Botlord-Mutant | -6/Factory Botlord-Mutant | -6/Garrison Botlord-Mutant | -6/Factory Botlord-Mutant | -6/Garrison Commander-Mutant | -5/Factory Botlord-Mutant | -5/Waste Botlord-Mutant | -5/Factory Botlord-Mutant | -5/Garrison Botlord-Mutant | -5/Factory Botlord-Mutant | -5/Garrison Botlord-Mutant | -5/Factory Commander-Mutant | -5/Garrison Botlord-Mutant | -4/Factory Botlord-Mutant | -4/Garrison Botlord-Mutant | -3/Research Botlord-Mutant | -3/Garrison Botlord-Mutant | -2/Research Botlord-Mutant | -2/Garrison Botlord-Mutant | -1/Access Resources | -11 -10 -10 -9 -9 -9 -8 -8 -8 -8 -8 -7 -7 -7 -7 -7 -7 -7 -7 -6 -6 -6 -6 -6 -6 -5 -5 -5 -5 -5 -5 -5 -5 -4 -4 -3 -3 -2 -2 -1 ----------- Run | Yrd Mat Min Mat Min Exi Min Mat Gar Mat Gar Fac Was Fac Gar Fac Gar Fac Gar Fac Was Fac Gar Fac Gar Fac Was Fac Gar Fac Gar Fac Gar Fac Gar Res Gar Res Gar Acc Matter Collected 12538 | 234 413 120 351 125 . 147 368 536 473 541 . 303 229 193 271 327 295 282 266 233 871 755 203 330 150 176 42 193 180 573 199 433 329 339 . 280 339 860 579 Remotely . | . . . . . . . . . . . . . . . . . . . . . . . . . . . . . . . . . . . . . . . . Salvage Created 19818 | . 866 112 815 187 . 165 1275 847 851 1073 . 1695 368 698 749 294 529 1064 396 1798 803 109 187 49 291 437 . . 7 577 255 354 68 177 . 410 117 1398 797 Parts 810 | . 37 5 51 15 . 9 72 54 49 57 . 17 12 33 31 14 24 57 11 24 38 4 7 . 16 7 . . 1 18 5 13 2 7 . 25 4 56 35 Haulers Intercepted 14 | . 2 . 3 . . . 6 . 3 . . . . . . . . . . . . . . . . . . . . . . . . . . . . . . Recyclers Shooed 2 | . . . . . . . . . 2 . . . . . . . . . . . . . . . . . . . . . . . . . . . . . . Parts Field Recycled . | . . . . . . . . . . . . . . . . . . . . . . . . . . . . . . . . . . . . . . . . Retrieved Matter . | . . . . . . . . . . . . . . . . . . . . . . . . . . . . . . . . . . . . . . . . Parts Self-Destructed . | . . . . . . . . . . . . . . . . . . . . . . . . . . . . . . . . . . . . . . . . Prevented . | . . . . . . . . . . . . . . . . . . . . . . . . . . . . . . . . . . . . . . . . Kills | -11 -10 -10 -9 -9 -9 -8 -8 -8 -8 -8 -7 -7 -7 -7 -7 -7 -7 -7 -6 -6 -6 -6 -6 -6 -5 -5 -5 -5 -5 -5 -5 -5 -4 -4 -3 -3 -2 -2 -1 ------- Run | Yrd Mat Min Mat Min Exi Min Mat Gar Mat Gar Fac Was Fac Gar Fac Gar Fac Gar Fac Was Fac Gar Fac Gar Fac Was Fac Gar Fac Gar Fac Gar Fac Gar Res Gar Res Gar Acc Combat Hostiles Destroyed 337 | . 14 3 14 9 . 5 23 36 12 30 . 6 7 20 14 6 12 27 5 6 19 5 3 1 5 . . . . 9 2 1 1 2 . 7 1 23 9 Melee 2 | . 1 . . . . . . . . . . . . . . . . . . . . . . . . . . . . 1 . . . . . . . . . Guns 15 | . 13 . 2 . . . . . . . . . . . . . . . . . . . . . . . . . . . . . . . . . . . . Cannons 213 | . . . 8 3 . 1 21 18 6 17 . 2 5 12 9 6 6 20 4 3 18 5 3 1 4 . . . . 6 2 . . 2 . 4 . 20 7 AOE 78 | . . 3 4 5 . 4 2 17 5 13 . . 1 7 5 . 5 6 . . . . . . . . . . . . . . . . . 1 . . . Classes Destroyed 24 | . 8 1 2 1 . . 1 2 . 2 . 1 . . 1 1 . . . . . . . . . 1 . . . 2 . . . . . . . . 1 Worker 17 | . 2 . 3 1 . 3 1 . 1 . . . . . . . 3 . . . 2 . . . . . . . 1 . . . . . . . . . . Builder 9 | . 1 . 1 1 . . . . 4 . . . 1 . . . . . . . . . . . . . . . . . . . . . . . . . 1 Tunneler 3 | . 1 . . . . 1 . . 1 . . . . . . . . . . . . . . . . . . . . . . . . . . . . . . Hauler 14 | . 2 . 3 . . . 6 . 3 . . . . . . . . . . . . . . . . . . . . . . . . . . . . . . Recycler 6 | . 1 . 1 . . . . . 2 . . . . . 1 . . . . . . . . . . . . . . . 1 . . . . . . . . Mechanic 3 | . . . . . . . . . . . . . . . . 1 1 . 1 . . . . . . . . . . . . . . . . . . . . Operator 3 | . 2 . . . . . 1 . . . . . . . . . . . . . . . . . . . . . . . . . . . . . . . . Watcher 13 | . 2 . 3 . . . 3 . 2 . . . . . . . . . . . . . . . . . . . . . . . . . . . 1 . 2 Swarmer 78 | . . 3 2 4 . 2 7 17 4 7 . . . 8 . . 1 11 1 . 3 3 . . . . . . . . . . . . . 1 . 4 . Cutter 7 | . . . . . . . . . . 1 . . . . . . . . . . . . . . . . . . . . . . . . . 2 . 4 . Saboteur 1 | . . . . . . . . . . . . . . . . . . . . . . . . . . . . . . 1 . . . . . . . . . Grunt 119 | . 14 . 7 4 . 2 11 9 7 14 . . 6 7 2 4 3 6 4 . 11 1 2 . . . . . . 2 . . . . . . . 3 . Brawler 9 | . . . 1 . . 1 . . . . . . . . 4 . 2 . 1 . . . . . . . . . . . . . . . . . . . . Duelist 6 | . . . . . . . . 1 . . . . . . 1 . 2 1 . . 1 . . . . . . . . . . . . . . . . . . Protector 1 | . . . . . . . . . . . . . . . 1 . . . . . . . . . . . . . . . . . . . . . . . . Sentry 26 | . . . 4 . . . 4 5 . 5 . . . 1 3 . . 2 1 . . 1 . . . . . . . . . . . . . . . . . Demolisher 1 | . . . . . . . . . . . . . . . . . . . . . . . . . . . . . . . . . . . . . . 1 . Specialist 4 | . . . . . . . . . . 1 . . . . . 2 . . . . . . . . . . . . . . . . . . . . . 1 . Hunter 24 | . . . . . . . 1 . 1 1 . . . 2 1 . . 2 . . 2 . 1 1 1 . . . . . . 1 1 . . . 1 4 4 Programmer 42 | . . . . . . . . 4 . 1 . . 1 2 2 . 4 5 . . 2 . . . 4 . . . . 3 2 . . 1 . 2 . 5 4 Heavy 2 | . . . . . . . . . . . . . . . . . . . . . . . . . . . . . . . . . . . . . . . 2 Behemoth 7 | . . . . . . . . . . . . . . . . . . . . . . . . . . . . . . 3 . . . 1 . 2 . 1 . Compactor 12 | . . . . . . . . . . . . 6 . . . . . . . 6 . . . . . . . . . . . . . . . . . . . Assembled 1 | . . . . 1 . . . . . . . . . . . . . . . . . . . . . . . . . . . . . . . . . . . Martyr 2 | . . . . . . . . . . . . . . . . . . . . . . . . . . 2 . . . . . . . . . . . . . Infiltrator 2 | . . . . . . . . . . . . . . . . . . 1 . . . . . . . . . . . . . . . . . 1 . . . Best Kill Streak 9 | . 4 2 9 4 . 3 5 6 7 7 . 2 2 7 5 2 7 6 2 1 4 2 2 1 2 . . . 1 2 2 1 1 1 . 2 1 6 4 Combat Bots Only 7 | . 2 2 5 4 . 2 5 6 3 7 . 2 2 7 5 2 6 6 2 1 4 2 2 1 2 . . . . 2 2 1 1 1 . 2 1 6 4 Max Kills in Single Turn 6 | . 2 2 3 3 . 2 2 3 3 3 . 1 1 2 3 1 6 6 1 1 1 1 1 1 1 1 . . 1 1 1 1 1 1 . 1 1 1 1 Gunslinging . | . . . . . . . . . . . . . . . . . . . . . . . . . . . . . . . . . . . . . . . . Exploded 6 | . . 2 2 3 . 2 2 3 2 3 . . 1 2 3 . 5 6 . . . . . . . . . . . . . . . . . 1 . . . Melee 1 | . 1 . . . . . . . . . . . . . . . . . . . . . . . . . . . . 1 . . . . . . . . . Uniques/NPCs Destroyed 1 | . . 1 . . . . . . . . . . . . . . . . . . . . . . . . . . . . . . . . . . . . . YI-UF0 (-10/Mines) Combat | -11 -10 -10 -9 -9 -9 -8 -8 -8 -8 -8 -7 -7 -7 -7 -7 -7 -7 -7 -6 -6 -6 -6 -6 -6 -5 -5 -5 -5 -5 -5 -5 -5 -4 -4 -3 -3 -2 -2 -1 -------- Run | Yrd Mat Min Mat Min Exi Min Mat Gar Mat Gar Fac Was Fac Gar Fac Gar Fac Gar Fac Was Fac Gar Fac Gar Fac Was Fac Gar Fac Gar Fac Gar Fac Gar Res Gar Res Gar Acc Hostile Shots Fired 2081 | . 75 3 43 24 . 2 132 98 64 129 . 1 27 111 113 72 46 222 69 . 186 78 51 119 31 . . 14 5 52 14 26 10 26 . 46 56 77 59 Missed 576 | . 13 1 14 9 . . 22 33 22 34 . . 11 38 41 18 13 57 26 . 62 20 10 28 9 . . 2 3 15 3 7 3 6 . 9 9 18 20 Damage Taken 20707 | . 801 18 418 216 . 48 1617 682 453 1429 . 38 200 921 410 538 531 1358 558 . 1172 554 459 1336 497 . . 192 47 987 362 363 333 604 . 514 685 1707 659 Core 1686 | . 122 8 49 6 . . 109 123 15 116 . . 21 134 39 81 35 121 37 . 152 41 18 68 25 . . 13 . 37 18 17 31 50 . 22 34 114 30 Absorbed by Shields 6975 | . . . . . . . 33 258 77 187 . . 75 101 212 132 125 647 . . 1041 236 181 78 . . . 40 . 22 . 116 323 215 . 540 641 1029 666 Reduced by Siege Mode 342 | . . . . . . . . . . . . . 5 17 4 19 . 24 . . 23 4 35 62 . . . . . 8 . . 9 47 . 6 9 43 27 Ignored by Resistances 594 | . . . . . . . 56 . . . . . . . 40 54 77 300 . . . . . 4 46 . . 17 . . . . . . . . . . . Regen/Repaired (Parts) 3767 | . 146 . . . . . 351 . . . . . . . 96 152 814 . . . 193 . . . 322 148 . 43 . 131 106 177 175 237 . 224 393 59 . Core Remaining (%) 75 | 100 . 48 . . . 86 . . . 34 . . . . . . . 38 . . . . . 62 . . . . . . . 89 . 92 . 98 . 89 98 Volleys Fired 1931 | . 83 12 44 16 . 5 79 79 46 57 . 161 26 72 34 53 34 68 35 57 92 52 26 37 33 29 1 17 17 88 33 73 41 62 5 50 48 186 80 Largest 2 | . 2 2 2 2 . 2 2 2 2 2 . 1 2 2 2 2 2 2 2 2 2 2 2 2 1 1 1 1 1 1 1 1 1 2 1 1 1 1 1 Hottest 214 | . 115 50 138 138 . 138 145 143 143 160 . 80 160 160 160 160 160 160 160 160 160 70 124 60 94 30 7 120 7 120 120 120 120 214 7 120 120 120 120 Shots Fired 2674 | . 152 23 85 32 . 10 157 135 82 103 . 162 43 132 56 84 51 132 52 96 146 68 40 58 33 29 2 19 18 91 34 74 41 64 5 50 48 187 80 Gun 190 | . 152 20 18 . . . . . . . . . . . . . . . . . . . . . . . . . . . . . . . . . . . . Cannon 1938 | . . . 62 28 . 5 156 118 71 91 . 155 34 127 46 73 37 130 40 88 129 46 30 39 31 29 1 11 1 44 12 44 9 43 . 28 22 109 49 Launcher 60 | . . 3 5 4 . 5 1 17 5 10 . . . 5 3 . 1 1 . . . . . . . . . . . . . . . . . . . . . Special 486 | . . . . . . . . . 6 2 . 7 9 . 7 11 13 1 12 8 17 22 10 19 2 . 1 8 17 47 22 30 32 21 5 22 26 78 31 Kinetic 242 | . 120 20 18 . . . . . . . . . . . . . . . . . 57 27 . . . . . . . . . . . . . . . . . Thermal 1837 | . 32 . 62 28 . 5 156 118 71 91 . 155 34 127 46 73 37 130 40 88 72 19 26 39 28 29 1 11 1 44 12 41 9 34 . 28 16 95 39 Explosive 60 | . . 3 5 4 . 5 1 17 5 10 . . . 5 3 . 1 1 . . . . . . . . . . . . . . . . . . . . . Electromagnetic 49 | . . . . . . . . . . . . . . . . . . . . . . . 4 . 3 . . . . . . 3 . 9 . . 6 14 10 Robot Hit Streak 25 | . 8 10 11 12 . 4 14 13 11 12 . 13 7 16 15 15 12 14 8 10 14 7 9 10 9 22 5 9 14 25 6 9 6 11 4 13 13 15 16 Robot Miss Streak 7 | . 2 2 4 3 . 4 3 2 4 4 . 4 3 4 2 3 4 4 3 3 6 4 3 6 2 2 1 1 1 4 2 2 7 2 1 5 2 3 3 Penetration Max . | . . . . . . . . . . . . . . . . . . . . . . . . . . . . . . . . . . . . . . . . Secondary Targets 2 | . 2 . . . . . . . . . . . . . . . . . . . . . . . . . . . . . . . . . . . . . . Max Gunslinging Chain 1 | . 1 . . . . . . . . . . . . . . . . . . . . . . . . . . . . . . . . . . . . . . Capacitor 429 | . . . . . . . . . . . . . . . . . . . . . . . . . 31 29 1 11 1 44 12 44 9 39 . 28 22 109 49 Shots Hit Robots 1645 | . 101 15 41 19 . 4 101 68 50 52 . 126 29 51 40 37 29 67 36 63 87 35 28 34 25 25 1 12 14 68 26 37 27 48 4 28 39 121 57 Core Hits 618 | . 44 9 32 8 . 14 46 67 30 42 . 15 12 29 29 13 19 37 10 11 34 8 6 4 9 7 . 2 1 11 3 8 2 6 . 5 2 31 12 Critical Kills 19 | . . . . 1 . . 1 1 1 . . 4 1 . . . . . . 3 1 . . . . 1 . . . 2 . . . . . 2 . 1 . Critical Parts Destroyed 2 | . 2 . . . . . . . . . . . . . . . . . . . . . . . . . . . . . . . . . . . . . . Critical Strikes 27 | . 3 . . 1 . . 1 1 1 . . 4 1 . . . . . . 3 2 2 . . . 1 . . . 2 . . . . . 2 . 1 2 Burn 1 | . 1 . . . . . . . . . . . . . . . . . . . . . . . . . . . . . . . . . . . . . . Meltdown 19 | . . . . 1 . . 1 1 1 . . 4 1 . . . . . . 3 1 . . . . 1 . . . 2 . . . . . 2 . 1 . Destroy 2 | . 2 . . . . . . . . . . . . . . . . . . . . . . . . . . . . . . . . . . . . . . Blast 3 | . . . . . . . . . . . . . . . . . . . . . 1 2 . . . . . . . . . . . . . . . . . Corrupt 2 | . . . . . . . . . . . . . . . . . . . . . . . . . . . . . . . . . . . . . . . 2 Melee Attacks . | . . . . . . . . . . . . . . . . . . . . . . . . . . . . . . . . . . . . . . . . Impact . | . . . . . . . . . . . . . . . . . . . . . . . . . . . . . . . . . . . . . . . . Slashing . | . . . . . . . . . . . . . . . . . . . . . . . . . . . . . . . . . . . . . . . . Piercing . | . . . . . . . . . . . . . . . . . . . . . . . . . . . . . . . . . . . . . . . . Sneak Attacks . | . . . . . . . . . . . . . . . . . . . . . . . . . . . . . . . . . . . . . . . . Combat Hostiles . | . . . . . . . . . . . . . . . . . . . . . . . . . . . . . . . . . . . . . . . . Follow-up Attacks . | . . . . . . . . . . . . . . . . . . . . . . . . . . . . . . . . . . . . . . . . Damage Inflicted 45366 | . 1323 335 1224 718 . 494 2533 3135 1980 2344 . 3357 638 2199 1575 882 1352 2377 740 1692 2605 735 633 515 847 738 . 147 93 1234 541 708 320 1246 . 654 916 2768 1768 Guns 1552 | . 1252 181 119 . . . . . . . . . . . . . . . . . . . . . . . . . . . . . . . . . . . . Cannons 35327 | . . . 684 329 . 41 2269 1627 1288 1304 . 3357 638 1357 786 882 518 1873 740 1692 2594 710 633 515 832 738 . 147 41 1218 541 685 294 1246 . 637 815 2762 1534 Explosions 7682 | . . 143 419 363 . 420 230 1507 690 1039 . . . 842 789 . 736 504 . . . . . . . . . . . . . . . . . . . . . Melee . | . . . . . . . . . . . . . . . . . . . . . . . . . . . . . . . . . . . . . . . . Ramming 805 | . 71 11 2 26 . 33 34 1 2 1 . . . . . . 98 . . . 11 25 . . 15 . . . 52 16 . 23 26 . . 17 101 6 234 Kinetic 2885 | . 996 181 119 . . . . . . . . . . . . . . . . . 1195 394 . . . . . . . . . . . . . . . . . Thermal 32866 | . 256 . 684 539 . 41 2269 1627 1288 1304 . 3357 638 1357 786 882 840 1873 740 1692 1399 316 464 515 709 738 . 147 41 1218 541 601 294 937 . 637 649 2342 1145 Explosive 7150 | . . 143 419 153 . 420 230 1507 690 1039 . . . 842 789 . 414 504 . . . . . . . . . . . . . . . . . . . . . Electromagnetic 1660 | . . . . . . . . . . . . . . . . . . . . . . . 169 . 123 . . . . . . 84 . 309 . . 166 420 389 Impact . | . . . . . . . . . . . . . . . . . . . . . . . . . . . . . . . . . . . . . . . . Slashing . | . . . . . . . . . . . . . . . . . . . . . . . . . . . . . . . . . . . . . . . . Piercing . | . . . . . . . . . . . . . . . . . . . . . . . . . . . . . . . . . . . . . . . . Highest Corruption 18 | . . . . . . . 6 11 11 12 . 7 8 9 9 9 9 10 . 10 13 14 18 18 4 4 4 4 4 4 4 4 . . . . 3 16 4 Average Corruption 8 | . . . . . . . 4 9 11 11 . 6 7 8 9 9 9 9 . 9 11 13 15 18 3 4 4 4 4 4 4 4 . . . . 2 7 2 Corruption Purged . | . . . . . . . . . . . . . . . . . . . . . . . . . . . . . . . . . . . . . . . . Corruption Blocked . | . . . . . . . . . . . . . . . . . . . . . . . . . . . . . . . . . . . . . . . . Effects 987 | . . . . . . . 66 65 50 72 . 30 23 38 34 46 43 52 . 27 67 69 19 52 8 18 8 36 13 44 14 29 . . . . 1 46 17 Message Errors 224 | . . . . . . . 17 17 13 17 . 5 6 7 6 11 9 6 . 4 19 15 5 10 3 3 2 12 4 10 5 4 . . . . . 12 2 Matter Fused 247 | . . . . . . . 19 14 15 18 . 3 4 5 9 14 8 15 . 9 20 16 6 16 . 7 2 9 2 10 1 9 . . . . 1 9 6 Heat Flow Errors 126 | . . . . . . . 8 8 5 8 . 5 1 3 3 8 5 13 . 2 5 10 2 6 1 5 1 7 2 4 2 3 . . . . . 6 3 Energy Discharges 108 | . . . . . . . 6 7 5 7 . 3 6 5 6 4 5 2 . 2 6 8 1 6 . 1 1 2 3 8 2 3 . . . . . 8 1 Parts Rejected 14 | . . . . . . . . 1 . 1 . 3 . . 1 1 2 . . 2 2 . . . . . . . . . . . . . . . . . 1 Parts Fused 3 | . . . . . . . . . 1 . . . . . . . . . . . . 1 . . . . . . 1 . . . . . . . . . . Data Loss (minor) 114 | . . . . . . . 6 10 6 10 . 2 2 8 6 3 7 7 . 2 6 5 2 6 1 . 1 3 . 6 1 7 . . . . . 5 2 Data Loss (major) 44 | . . . . . . . 4 2 1 4 . 3 2 3 . 1 2 1 . 2 1 7 1 . 3 . . 1 . 2 . 2 . . . . . 1 1 Misfires 51 | . . . . . . . 3 4 1 4 . 3 2 2 . 2 2 3 . 2 3 3 1 5 . . 1 2 1 3 1 1 . . . . . 2 . Alerts 23 | . . . . . . . 1 . . . . 1 . 3 1 2 2 1 . . 1 2 . 1 . 2 . . . 1 2 . . . . . . 2 1 Misdirections 4 | . . . . . . . . . 1 1 . . . . . . . . . . . 1 . 1 . . . . . . . . . . . . . . . Weapon Failures 29 | . . . . . . . 2 2 2 2 . 2 . 2 2 . 1 4 . 2 4 1 1 1 . . . . . . . . . . . . . 1 . Overload Shots . | . . . . . . . . . . . . . . . . . . . . . . . . . . . . . . . . . . . . . . . . Overflow Damage 1449 | . . . 2 81 . . 60 51 112 76 . . 19 149 16 . 166 89 22 . 102 19 20 7 2 2 . . . 16 24 . 22 74 . . 74 32 212 Projectiles 775 | . . . 2 11 . . 60 25 40 . . . 19 17 . . . 89 22 . 102 19 20 7 2 2 . . . 16 24 . 22 74 . . 54 32 116 Explosions 558 | . . . . 70 . . . 26 72 76 . . . 132 16 . 166 . . . . . . . . . . . . . . . . . . . . . . Melee 116 | . . . . . . . . . . . . . . . . . . . . . . . . . . . . . . . . . . . . . 20 . 96 Knockbacks 11 | . . . . . . . . . . . . . . . . . . . . . 5 3 . . . . . . . . . . . . . . 1 . 2 Impact 3 | . . . . . . . . . . . . . . . . . . . . . . . . . . . . . . . . . . . . . 1 . 2 Kinetic 8 | . . . . . . . . . . . . . . . . . . . . . 5 3 . . . . . . . . . . . . . . . . . Secondary . | . . . . . . . . . . . . . . . . . . . . . . . . . . . . . . . . . . . . . . . . Self-Inflicted Damage 307 | . . . 14 18 . 18 . 119 21 7 . . . 69 . . 36 5 . . . . . . . . . . . . . . . . . . . . . Shots 13 | . . . 1 2 . 1 . 4 1 1 . . . 1 . . 1 1 . . . . . . . . . . . . . . . . . . . . . Rammed 73 | . 19 3 1 3 . 3 8 1 2 1 . . . . . . 10 . . . . 1 . . 1 . . . 1 1 . 1 3 . . 2 4 1 7 Targets Rammed 83 | . 20 3 1 4 . 6 9 1 2 1 . . . . . . 10 . . . 1 1 . . 1 . . . 2 2 . 1 3 . . 2 5 1 7 Kicked . | . . . . . . . . . . . . . . . . . . . . . . . . . . . . . . . . . . . . . . . . Crushed 10 | . 1 . . 1 . 3 1 . . . . . . . . . . . . . 1 . . . . . . . 1 1 . . . . . . 1 . . Highest Temperature 593 | . 230 . 105 123 . 63 345 242 252 471 . 593 180 254 200 257 369 237 342 405 414 430 195 239 180 326 139 367 . 323 192 228 94 567 . 362 342 344 130 Average Temperature 96 | . 99 . 19 39 . 23 94 56 52 103 . 134 70 62 67 67 99 60 110 106 92 128 70 96 90 133 62 101 . 90 85 89 48 188 . 145 89 99 62 Received Heat Transfer 5883 | . 459 . 144 99 . 18 704 110 170 528 . . 78 254 140 279 150 381 225 . 259 94 33 110 . . . 42 27 500 108 48 22 509 . 39 300 40 13 Effects 30 | . 1 . . . . . 2 . . 6 . 4 . . . . . . 2 . 1 9 . . . . . 4 . . . . . 1 . . . . . Shutdowns 4 | . . . . . . . . . . 2 . . . . . . . . . . . 1 . . . . . 1 . . . . . . . . . . . Energy Bleed 9 | . . . . . . . 1 . . 3 . 1 . . . . . . . . . 3 . . . . . 1 . . . . . . . . . . . Interference 10 | . 1 . . . . . . . . . . 1 . . . . . . 2 . . 4 . . . . . 2 . . . . . . . . . . . Short Circuit 2 | . . . . . . . . . . . . 1 . . . . . . . . 1 . . . . . . . . . . . . . . . . . . Damage (minor) 4 | . . . . . . . 1 . . 1 . . . . . . . . . . . 1 . . . . . . . . . . . 1 . . . . . Damage (major) 1 | . . . . . . . . . . . . 1 . . . . . . . . . . . . . . . . . . . . . . . . . . . Siege Activations 51 | . . . . . . . . . . . . . 1 4 8 4 . 3 1 . 4 1 2 1 2 1 . . . 2 1 1 1 2 . 1 1 6 4 Total Turns 951 | . . . . . . . . . . . . . 90 64 183 38 . 53 18 . 50 8 179 28 11 37 . . . 11 13 6 3 25 . 8 5 70 51 Longest Duration 137 | . . . . . . . . . . . . . 90 43 119 17 . 33 18 . 27 8 137 28 9 37 . . . 10 13 6 3 15 . 8 5 25 26 Robots Corrupted 8 | . . . . . . . . . . . . . . . . . . . . . . . . . 1 . . . . . . 1 . . . . 1 2 3 Combat Hostiles 7 | . . . . . . . . . . . . . . . . . . . . . . . . . 1 . . . . . . 1 . . . . 1 2 2 Parts Fried 12 | . . . . . . . . . . . . . . . . . . . . . . . . . 2 . . . . . . 2 . . . . . 2 6 Impact Corruptions 5 | . . . . . . . . . . . . . . . . . . . . . . . . . . . . . . . . . . . . . 1 . 4 Robots Melted 24 | . . . . 1 . . 1 1 1 . . 4 1 1 . . 1 1 1 3 1 . . . . 1 . . . 2 . . 1 . . 2 . 1 . Combat Hostiles 22 | . . . . 1 . . . 1 1 . . 4 1 1 . . 1 1 1 3 1 . . . . . . . . 2 . . 1 . . 2 . 1 . Parts Melted 127 | . 3 . 2 2 . . 6 4 3 3 . 7 11 12 5 3 2 24 4 4 1 . . 2 4 1 . . . 7 2 . 1 1 . 3 . 3 7 Heat Transferred 48729 | . 814 . 1221 842 . 74 3737 2368 1850 2500 . 6600 1200 2550 1500 1688 1098 3386 1359 3300 2238 398 629 703 777 999 . 128 37 962 407 518 259 777 . 518 518 1886 888 Parts Sabotaged 2 | . . . . . . . . . . . . . . . . . . . . . . . . . . . . . . 2 . . . . . . . . . Parts Stolen . | . . . . . . . . . . . . . . . . . . . . . . . . . . . . . . . . . . . . . . . . Parts Stripped . | . . . . . . . . . . . . . . . . . . . . . . . . . . . . . . . . . . . . . . . . Power Chain Reactions . | . . . . . . . . . . . . . . . . . . . . . . . . . . . . . . . . . . . . . . . . Alert | -11 -10 -10 -9 -9 -9 -8 -8 -8 -8 -8 -7 -7 -7 -7 -7 -7 -7 -7 -6 -6 -6 -6 -6 -6 -5 -5 -5 -5 -5 -5 -5 -5 -4 -4 -3 -3 -2 -2 -1 ------- Run | Yrd Mat Min Mat Min Exi Min Mat Gar Mat Gar Fac Was Fac Gar Fac Gar Fac Gar Fac Was Fac Gar Fac Gar Fac Was Fac Gar Fac Gar Fac Gar Fac Gar Res Gar Res Gar Acc Peak Influence 1676 | . 228 192 484 264 . 215 259 1521 834 1358 761 266 105 834 693 1293 799 1676 879 144 209 455 318 275 183 2 264 1147 807 792 427 602 315 458 293 793 566 700 464 Initial 879 | . . 88 . 141 . . . 150 741 138 712 266 . . 437 390 678 119 879 144 . 21 235 21 144 . 1 184 602 202 415 32 315 42 257 69 445 15 420 Average 364 | . 82 58 165 127 . 47 110 965 417 727 736 144 52 524 538 919 632 1019 568 67 75 188 235 156 90 . 77 799 433 499 69 339 93 248 268 407 257 377 189 Maximum Alert Level 5 | . 1 . 2 1 . 1 1 4 3 4 3 1 . 3 2 4 3 5 3 . 1 2 1 1 . . 1 4 3 3 2 2 1 2 1 3 2 3 2 Low Security (%) 43 | 100 99 100 78 61 . 93 74 5 23 2 . 56 100 22 . . 5 7 . 100 97 72 11 54 100 100 74 . 3 . 94 19 83 39 7 21 31 14 59 Level 1 20 | . . . 6 38 . 6 25 2 40 12 . 43 . 6 . 1 2 4 30 . 2 14 88 45 . . 25 6 48 28 1 51 16 33 92 44 43 44 17 Level 2 17 | . . . 15 . . . . 13 3 24 . . . 52 100 25 59 9 35 . . 12 . . . . . 23 27 52 3 29 . 27 . 19 25 41 22 Level 3 14 | . . . . . . . . 40 31 51 100 . . 18 . 49 33 33 33 . . . . . . . . 63 19 18 . . . . . 14 . . . Level 4 4 | . . . . . . . . 38 . 8 . . . . . 23 . 38 . . . . . . . . . 6 . . . . . . . . . . . Level 5 . | . . . . . . . . . . . . . . . . . . 6 . . . . . . . . . . . . . . . . . . . . . High Security . | . . . . . . . . . . . . . . . . . . . . . . . . . . . . . . . . . . . . . . . . Max Security . | . . . . . . . . . . . . . . . . . . . . . . . . . . . . . . . . . . . . . . . . Squads Dispatched 73 | . 6 . 2 1 . 1 2 . 5 . 1 . . . 5 . 7 . 1 . 10 . 4 . 1 . 1 . 3 . 5 . 5 . 1 . 4 . 8 Investigation 18 | . 4 . 1 1 . . 1 . 2 . 1 . . . . . 1 . . . 2 . 1 . . . 1 . 1 . 1 . . . . . 1 . . Extermination 10 | . . . . . . . . . . . . . . . 2 . 1 . . . 2 . . . 1 . . . . . . . 2 . 1 . . . 1 Reinforcement 30 | . 2 . 1 . . 1 1 . 3 . . . . . . . 1 . . . 5 . 1 . . . . . 2 . 3 . 3 . . . 3 . 4 Assault 3 | . . . . . . . . . . . . . . . 1 . 1 . 1 . . . . . . . . . . . . . . . . . . . . Garrison 12 | . . . . . . . . . . . . . . . 2 . 3 . . . 1 . 2 . . . . . . . 1 . . . . . . . 3 Intercept . | . . . . . . . . . . . . . . . . . . . . . . . . . . . . . . . . . . . . . . . . Searches Triggered . | . . . . . . . . . . . . . . . . . . . . . . . . . . . . . . . . . . . . . . . . Construction Impeded 5 | . . . 1 . . 1 . . 1 . . . . . . . . . . . . . . . . . . . . . 1 . . . . . . . 1 Haulers Reinforced 5 | . . . . . . . . . . . . . . . . . . . . . 2 . . . . . . . . . 1 . 1 . . . . . 1 Active Scanning Responses . | . . . . . . . . . . . . . . . . . . . . . . . . . . . . . . . . . . . . . . . . Cargo Convoy Interrupts 1 | . . . . . . . . . . . . . . . . . . . . . . . . . . . . . 1 . . . . . . . . . . Alert ID Control Effect 259 | . . . . . . . . . . . . . . . 1 11 6 1 . . 10 14 2 17 . . . 1 5 26 9 16 34 8 . 18 33 21 26 Stealth | -11 -10 -10 -9 -9 -9 -8 -8 -8 -8 -8 -7 -7 -7 -7 -7 -7 -7 -7 -6 -6 -6 -6 -6 -6 -5 -5 -5 -5 -5 -5 -5 -5 -4 -4 -3 -3 -2 -2 -1 --------- Run | Yrd Mat Min Mat Min Exi Min Mat Gar Mat Gar Fac Was Fac Gar Fac Gar Fac Gar Fac Was Fac Gar Fac Gar Fac Was Fac Gar Fac Gar Fac Gar Fac Gar Res Gar Res Gar Acc Distress Signals 27 | . . . 2 . . . 3 . 3 . . . . . . . 3 . 3 . 1 . . . . . 1 . 2 . . . 2 1 . . 2 . 4 Communications Jammed 496 | . . . . . . . . . . . . . 1 . . . 5 . . . 20 . . . . . 3 . . . 1 . 178 1 . . 227 13 47 Distress Signals 480 | . . . . . . . . . . . . . 1 . . . 5 . . . 20 . . . . . . . . . . . 178 1 . . 220 13 42 Times Spotted 953 | . 37 1 33 9 . 8 30 30 25 35 . 5 10 22 17 29 25 45 29 5 38 36 9 36 6 . 4 31 14 55 20 40 40 35 2 35 42 64 51 Peak Tracking Total 9 | . 5 1 8 4 . 3 7 9 3 6 . 2 3 5 5 5 5 6 9 3 4 4 4 9 2 . 2 6 2 6 5 6 7 9 1 4 7 7 6 Tactical Retreats 29 | . . . . 1 . . 4 4 1 2 . . . 3 . . . 2 4 . . . . 2 . . . 1 . 1 . . . . . . 1 3 . Traps | -11 -10 -10 -9 -9 -9 -8 -8 -8 -8 -8 -7 -7 -7 -7 -7 -7 -7 -7 -6 -6 -6 -6 -6 -6 -5 -5 -5 -5 -5 -5 -5 -5 -4 -4 -3 -3 -2 -2 -1 ------- Run | Yrd Mat Min Mat Min Exi Min Mat Gar Mat Gar Fac Was Fac Gar Fac Gar Fac Gar Fac Was Fac Gar Fac Gar Fac Was Fac Gar Fac Gar Fac Gar Fac Gar Res Gar Res Gar Acc Traps Triggered 77 | . 1 1 . . . . 5 4 1 10 1 . . 1 . 5 2 3 2 . 2 7 . 1 1 . . 9 3 4 . 2 . . . 8 . . 4 Indirectly . | . . . . . . . . . . . . . . . . . . . . . . . . . . . . . . . . . . . . . . . . Trap Hack Attempts . | . . . . . . . . . . . . . . . . . . . . . . . . . . . . . . . . . . . . . . . . Triggered . | . . . . . . . . . . . . . . . . . . . . . . . . . . . . . . . . . . . . . . . . Disarmed . | . . . . . . . . . . . . . . . . . . . . . . . . . . . . . . . . . . . . . . . . Reprogrammed . | . . . . . . . . . . . . . . . . . . . . . . . . . . . . . . . . . . . . . . . . Reused . | . . . . . . . . . . . . . . . . . . . . . . . . . . . . . . . . . . . . . . . . Traps Extracted . | . . . . . . . . . . . . . . . . . . . . . . . . . . . . . . . . . . . . . . . . Installed . | . . . . . . . . . . . . . . . . . . . . . . . . . . . . . . . . . . . . . . . . Triggered 1 | . . . . . . . . . . . . . . . . . . . . . . . . . . . . . . . . . . . . . . . 1 Machines | -11 -10 -10 -9 -9 -9 -8 -8 -8 -8 -8 -7 -7 -7 -7 -7 -7 -7 -7 -6 -6 -6 -6 -6 -6 -5 -5 -5 -5 -5 -5 -5 -5 -4 -4 -3 -3 -2 -2 -1 ---------- Run | Yrd Mat Min Mat Min Exi Min Mat Gar Mat Gar Fac Was Fac Gar Fac Gar Fac Gar Fac Was Fac Gar Fac Gar Fac Was Fac Gar Fac Gar Fac Gar Fac Gar Res Gar Res Gar Acc Machines Disabled 119 | . 1 . 4 3 . 1 2 5 3 4 . . . 4 . 6 4 9 1 . 1 6 2 5 2 . 1 7 2 6 1 6 12 6 1 4 . 8 2 Max in Single Turn 3 | . 1 . 2 3 . 1 1 1 1 1 . . . 1 . 1 3 2 . . . 1 . 1 1 . . 1 . 1 . 1 . 1 . 1 . 1 1 Garrison Access 2 | . . . . . . . . . . . . . . . . . . . 1 . . . . . . . . . . . . . . . . . . . 1 Garrison Relay 56 | . . . . . . . . 1 . 3 . . . 3 . 5 . 8 . . . 5 . 4 . . . 4 . 4 . 5 . 5 . 4 . 5 . Machines Repaired . | . . . . . . . . . . . . . . . . . . . . . . . . . . . . . . . . . . . . . . . . Machines Dismantled . | . . . . . . . . . . . . . . . . . . . . . . . . . . . . . . . . . . . . . . . . Machines Sabotaged . | . . . . . . . . . . . . . . . . . . . . . . . . . . . . . . . . . . . . . . . . Overloaded Fab Kills . | . . . . . . . . . . . . . . . . . . . . . . . . . . . . . . . . . . . . . . . . Hacking | -11 -10 -10 -9 -9 -9 -8 -8 -8 -8 -8 -7 -7 -7 -7 -7 -7 -7 -7 -6 -6 -6 -6 -6 -6 -5 -5 -5 -5 -5 -5 -5 -5 -4 -4 -3 -3 -2 -2 -1 --------- Run | Yrd Mat Min Mat Min Exi Min Mat Gar Mat Gar Fac Was Fac Gar Fac Gar Fac Gar Fac Was Fac Gar Fac Gar Fac Was Fac Gar Fac Gar Fac Gar Fac Gar Res Gar Res Gar Acc Machines Accessed 110 | . 7 1 8 1 2 . 9 4 6 3 2 . 5 1 2 1 6 3 5 . 4 2 1 2 3 . 2 2 5 3 2 2 6 2 1 2 2 2 1 Terminals 71 | . 4 . 7 . . . 7 4 5 3 1 . 2 1 . 1 2 3 3 . 2 2 . 2 2 . 1 2 3 3 . 2 3 2 . 2 . 2 . Fabricators 9 | . . . . . . . . . . . . . 2 . 1 . 1 . 1 . . . . . 1 . . . 1 . 1 . 1 . . . . . . Repair Stations 7 | . 1 . . . . . 1 . . . . . . . . . 2 . . . 1 . . . . . . . . . . . 1 . . . 1 . . Recycling Units 3 | . 2 . 1 . . . . . . . . . . . . . . . . . . . . . . . . . . . . . . . . . . . . Scanalyzers . | . . . . . . . . . . . . . . . . . . . . . . . . . . . . . . . . . . . . . . . . Garrison Access 16 | . . . . . . . 1 . 1 . 1 . 1 . 1 . 1 . 1 . 1 . 1 . . . 1 . 1 . 1 . 1 . 1 . 1 . 1 Total Hacks 262 | . 18 1 25 1 2 . 31 8 16 5 3 . 13 3 4 1 16 6 9 . 13 4 4 3 9 . 6 5 17 5 4 4 10 2 2 3 4 4 1 Successful 130 | . 10 1 13 1 2 . 16 1 6 2 2 . 5 . 3 1 7 1 6 . 6 2 3 1 4 . 3 2 8 2 4 2 6 2 2 . 3 2 1 Failed 132 | . 8 . 12 . . . 15 7 10 3 1 . 8 3 1 . 9 5 3 . 7 2 1 2 5 . 3 3 9 3 . 2 4 . . 3 1 2 . Catastrophic 26 | . 1 . 3 . . . 2 . 2 1 1 . 3 . . . 5 1 . . 2 . . . 1 . 1 2 1 . . . . . . . . . . Database Lockouts . | . . . . . . . . . . . . . . . . . . . . . . . . . . . . . . . . . . . . . . . . Manual 108 | . 9 . 18 . 1 . 17 . 15 . 2 . 8 . . . 7 . 1 . 3 . 3 . 4 . 5 1 6 . 1 . 4 . . . 3 . . Terminals 180 | . 10 . 24 . . . 25 8 15 5 1 . 7 3 . 1 5 6 7 . 7 4 . 3 5 . 3 5 11 5 . 4 7 2 . 3 . 4 . Fabricators 18 | . . . . . . . . . . . . . 4 . 2 . 1 . 1 . . . . . 4 . . . 3 . 2 . 1 . . . . . . Repair Stations 25 | . 6 . . . . . 5 . . . . . . . . . 7 . . . 4 . . . . . . . . . . . 1 . . . 2 . . Recycling Units 3 | . 2 . 1 . . . . . . . . . . . . . . . . . . . . . . . . . . . . . . . . . . . . Scanalyzers . | . . . . . . . . . . . . . . . . . . . . . . . . . . . . . . . . . . . . . . . . Garrison Access 32 | . . . . . . . 1 . 1 . 2 . 2 . 2 . 3 . 1 . 2 . 4 . . . 3 . 3 . 2 . 1 . 2 . 2 . 1 Terminal Hacks 52 | . 4 1 5 1 2 . 2 1 4 2 1 . 1 . . 1 . 1 4 . 2 2 . 1 2 . 1 2 3 2 . 2 1 2 . . . 2 . Record 1 | . . . . . 1 . . . . . . . . . . . . . . . . . . . . . . . . . . . . . . . . . . Part Schematic 1 | . . . . . . . . . . . . . . . . . . . 1 . . . . . . . . . . . . . . . . . . . . Robot Schematic 2 | . 1 . . . . . . . . . . . 1 . . . . . . . . . . . . . . . . . . . . . . . . . . Robot Analysis 3 | . 1 . 1 . . . . . 1 . . . . . . . . . . . . . . . . . . . . . . . . . . . . . . Prototype ID Bank 6 | . 2 . 3 . . . . . . . . . . . . . . . . . 1 . . . . . . . . . . . . . . . . . . Open Door 6 | . . 1 . 1 . . . . . 1 . . . . . . . . . . . . . . . . . . . . . 1 . 1 . . . 1 . Emergency Access Points 10 | . . . . . . . . 1 . 1 . . . . . 1 . 1 . . . 1 . . . . . 1 . 1 . 1 . 1 . . . 1 . Terminal Index 3 | . . . . . . . . . . . . . . . . . . . 1 . 1 . . . . . 1 . . . . . . . . . . . . Fabricator Index 1 | . . . . . . . . . . . . . . . . . . . . . . . . . 1 . . . . . . . . . . . . . . Unreport Threat 9 | . . . . . . . 1 . 3 . . . . . . . . . 2 . . . . . . . . . 3 . . . . . . . . . . Locate Traps 4 | . . . 1 . . . 1 . . . 1 . . . . . . . . . . . . . 1 . . . . . . . . . . . . . . Hauler Manifests 1 | . . . . . . . . . . . . . . . . . . . . . . . . . . . . . . . . . 1 . . . . . . Garrison Registry 1 | . . . . . . . . . . . . . . . . . . . . . . . . 1 . . . . . . . . . . . . . . . Patrol Navigation 2 | . . . . . . . . . . . . . . . . . . . . . . 1 . . . . . 1 . . . . . . . . . . . Security Stations 1 | . . . . . . . . . . . . . . . . . . . . . . . . . . . . . . 1 . . . . . . . . . Derelict Proto ID Bank 1 | . . . . . 1 . . . . . . . . . . . . . . . . . . . . . . . . . . . . . . . . . . Fabricator Hacks 8 | . . . . . . . . . . . . . 1 . 1 . . . . . . . . . 2 . . . 1 . 2 . 1 . . . . . . Network Status 3 | . . . . . . . . . . . . . 1 . . . . . . . . . . . . . . . 1 . . . 1 . . . . . . Load Schematic 3 | . . . . . . . . . . . . . . . 1 . . . . . . . . . 1 . . . . . 1 . . . . . . . . Build 2 | . . . . . . . . . . . . . . . . . . . . . . . . . 1 . . . . . 1 . . . . . . . . Repair Station Hacks 13 | . 4 . . . . . 4 . . . . . . . . . 4 . . . 1 . . . . . . . . . . . . . . . . . . Scan Component 7 | . 2 . . . . . 2 . . . . . . . . . 2 . . . 1 . . . . . . . . . . . . . . . . . . Repair 6 | . 2 . . . . . 2 . . . . . . . . . 2 . . . . . . . . . . . . . . . . . . . . . . Recycling Unit Hacks . | . . . . . . . . . . . . . . . . . . . . . . . . . . . . . . . . . . . . . . . . Scanalyzer . | . . . . . . . . . . . . . . . . . . . . . . . . . . . . . . . . . . . . . . . . Garrison Access Hacks 18 | . . . . . . . 1 . 1 . . . 1 . 2 . 1 . 1 . 1 . 1 . . . 1 . 2 . 1 . 1 . 2 . 1 . 1 Unlock Access 13 | . . . . . . . 1 . 1 . . . 1 . 1 . 1 . . . 1 . 1 . . . 1 . 1 . 1 . 1 . 1 . 1 . . Seal Access 2 | . . . . . . . . . . . . . . . . . . . 1 . . . . . . . . . . . . . . . . . . . 1 Coupler Status 3 | . . . . . . . . . . . . . . . 1 . . . . . . . . . . . . . 1 . . . . . 1 . . . . Unauthorized Hacks 39 | . 2 . 8 . . . 9 . 1 . 1 . 2 . . . 2 . 1 . 2 . 2 . . . 1 . 2 . 1 . 3 . . . 2 . . Terminals 23 | . . . 7 . . . 9 . 1 . . . . . . . 1 . 1 . 1 . . . . . . . 1 . . . 2 . . . . . . Assimilate 3 | . . . . . . . 1 . 1 . . . . . . . . . . . 1 . . . . . . . . . . . . . . . . . . Botnet 5 | . . . 2 . . . 2 . . . . . . . . . . . . . . . . . . . . . . . . . 1 . . . . . . Operators 4 | . . . . . . . . . . . . . . . . . 1 . 1 . . . . . . . . . 1 . . . 1 . . . . . . Skim 11 | . . . 5 . . . 6 . . . . . . . . . . . . . . . . . . . . . . . . . . . . . . . . Fabricators 1 | . . . . . . . . . . . . . 1 . . . . . . . . . . . . . . . . . . . . . . . . . . Haulers 1 | . . . . . . . . . . . . . 1 . . . . . . . . . . . . . . . . . . . . . . . . . . Repair Stations 2 | . . . . . . . . . . . . . . . . . . . . . . . . . . . . . . . . . 1 . . . 1 . . Mechanics 2 | . . . . . . . . . . . . . . . . . . . . . . . . . . . . . . . . . 1 . . . 1 . . Recycling Units 3 | . 2 . 1 . . . . . . . . . . . . . . . . . . . . . . . . . . . . . . . . . . . . Tunnel 3 | . 2 . 1 . . . . . . . . . . . . . . . . . . . . . . . . . . . . . . . . . . . . Scanalyzers . | . . . . . . . . . . . . . . . . . . . . . . . . . . . . . . . . . . . . . . . . Garrison Access 10 | . . . . . . . . . . . 1 . 1 . . . 1 . . . 1 . 2 . . . 1 . 1 . 1 . . . . . 1 . . Restock 3 | . . . . . . . . . . . . . 1 . . . . . . . . . 1 . . . 1 . . . . . . . . . . . . Redirect 1 | . . . . . . . . . . . . . . . . . . . . . . . 1 . . . . . . . . . . . . . . . . Eject 6 | . . . . . . . . . . . 1 . . . . . 1 . . . 1 . . . . . . . 1 . 1 . . . . . 1 . . Data Cores Recovered 2 | . . . . . . . . . . . . . . . . . . . . . . . . . . . . . . . . . 1 . . . 1 . . Used . | . . . . . . . . . . . . . . . . . . . . . . . . . . . . . . . . . . . . . . . . Hacking Detections 88 | . 5 . 6 . . . 8 4 6 3 1 . 5 1 2 . 6 3 4 . 3 2 1 2 3 . 2 2 4 1 1 2 6 . 1 2 1 1 . Full Trace Events 12 | . 2 . . . . . 1 2 1 1 . . . 1 . . . . . . 1 . 1 . . . 1 1 . . . . . . . . . . . Feedback Events 2 | . . . . . . . 1 . . . . . . . . . . . . . 1 . . . . . . . . . . . . . . . . . . Corruption 2 | . . . . . . . 1 . . . . . . . . . . . . . 1 . . . . . . . . . . . . . . . . . . Feedback Blocked . | . . . . . . . . . . . . . . . . . . . . . . . . . . . . . . . . . . . . . . . . Robot Schematics Acquired 2 | . 1 . . . . . . . . . . . 1 . . . . . . . . . . . . . . . . . . . . . . . . . . Robots Built 2 | . . . . . . . . . . . . . . . . . . . . . . . . . 1 . . . . . 1 . . . . . . . . Authchips 2 | . . . . . . . . . . . . . . . . . . . . . . . . . 1 . . . . . 1 . . . . . . . . Time 67 | . . . . . . . . . . . . . . . . . . . . . . . . . 40 . . . . . 27 . . . . . . . . Total Robot Build Rating 2 | . . . . . . . . . . . . . . . . . . . . . . . . . 1 . . . . . 1 . . . . . . . . Part Schematics Acquired 1 | . . . . . . . . . . . . . . . . . . . 1 . . . . . . . . . . . . . . . . . . . . Parts Built . | . . . . . . . . . . . . . . . . . . . . . . . . . . . . . . . . . . . . . . . . Authchips . | . . . . . . . . . . . . . . . . . . . . . . . . . . . . . . . . . . . . . . . . Time . | . . . . . . . . . . . . . . . . . . . . . . . . . . . . . . . . . . . . . . . . Total Part Build Rating . | . . . . . . . . . . . . . . . . . . . . . . . . . . . . . . . . . . . . . . . . Parts Repaired 6 | . 2 . . . . . 2 . . . . . . . . . 2 . . . . . . . . . . . . . . . . . . . . . . Time 240 | . 52 . . . . . 76 . . . . . . . . . 112 . . . . . . . . . . . . . . . . . . . . . . Parts Recycled . | . . . . . . . . . . . . . . . . . . . . . . . . . . . . . . . . . . . . . . . . Recycled Matter . | . . . . . . . . . . . . . . . . . . . . . . . . . . . . . . . . . . . . . . . . Retrieved Matter . | . . . . . . . . . . . . . . . . . . . . . . . . . . . . . . . . . . . . . . . . Retrieved Components . | . . . . . . . . . . . . . . . . . . . . . . . . . . . . . . . . . . . . . . . . Parts Scanalyzed . | . . . . . . . . . . . . . . . . . . . . . . . . . . . . . . . . . . . . . . . . Part Schematics Acquired . | . . . . . . . . . . . . . . . . . . . . . . . . . . . . . . . . . . . . . . . . Parts Damaged . | . . . . . . . . . . . . . . . . . . . . . . . . . . . . . . . . . . . . . . . . Bothacking | -11 -10 -10 -9 -9 -9 -8 -8 -8 -8 -8 -7 -7 -7 -7 -7 -7 -7 -7 -6 -6 -6 -6 -6 -6 -5 -5 -5 -5 -5 -5 -5 -5 -4 -4 -3 -3 -2 -2 -1 ------------ Run | Yrd Mat Min Mat Min Exi Min Mat Gar Mat Gar Fac Was Fac Gar Fac Gar Fac Gar Fac Was Fac Gar Fac Gar Fac Was Fac Gar Fac Gar Fac Gar Fac Gar Res Gar Res Gar Acc Used RIF Installer 16 | . . . . . . . . 1 . 2 . . . 1 . 2 . 1 . . . 2 . 1 . . . 1 . 1 . 1 . 1 . 1 . 1 . Hotswap 1 | . . . . . . . . . . . . . . . . . . . . . . . . . . . . . . . . . . 1 . . . . . Code Merge 1 | . . . . . . . . . . . . . . . . . . . . . . . . . . . . 1 . . . . . . . . . . . Command Fork 1 | . . . . . . . . . . . . . . . . 1 . . . . . . . . . . . . . . . . . . . . . . . Threat Obfuscator 3 | . . . . . . . . . . . . . . . . . . . . . . 1 . . . . . . . . . . . . . 1 . 1 . Signal Jammer 1 | . . . . . . . . . . 1 . . . . . . . . . . . . . . . . . . . . . . . . . . . . . Zone Cloak 2 | . . . . . . . . . . . . . . . . . . 1 . . . . . 1 . . . . . . . . . . . . . . . Robot Detection 1 | . . . . . . . . . . . . . . . . . . . . . . . . . . . . . . 1 . . . . . . . . . Watcher Feeds 1 | . . . . . . . . . . . . . . . . . . . . . . . . . . . . . . . . 1 . . . . . . . Patrol Navigation 1 | . . . . . . . . . . 1 . . . . . . . . . . . . . . . . . . . . . . . . . . . . . Alert ID Control 1 | . . . . . . . . . . . . . . 1 . . . . . . . . . . . . . . . . . . . . . . . . . Structural Interface 1 | . . . . . . . . . . . . . . . . 1 . . . . . . . . . . . . . . . . . . . . . . . Crosswire 1 | . . . . . . . . . . . . . . . . . . . . . . 1 . . . . . . . . . . . . . . . . . Robots Hacked 247 | . . . . . . . . . 1 1 . 6 5 . 4 6 4 1 10 6 11 12 5 11 2 . 1 6 11 16 10 17 14 14 4 13 17 16 23 Non-combat 40 | . . . . . . . . . 1 . . . 2 . 1 . 2 . 3 . 5 . 1 . 2 . . . 3 . 2 . 6 1 2 . 4 1 4 Combat 207 | . . . . . . . . . . 1 . 6 3 . 3 6 2 1 7 6 6 12 4 11 . . 1 6 8 16 8 17 8 13 2 13 13 15 19 Robot Hacks Applied 283 | . . . . . . . . . 4 1 . 7 7 . 5 6 10 1 11 6 12 12 6 11 2 . 1 6 13 20 14 17 18 15 4 13 21 17 23 parse_system 23 | . . . . . . . . . . . . 1 . . 1 2 . . . . 2 . 1 . . . . 2 . 5 . . 2 . . 3 2 1 1 find_chute 2 | . . . . . . . . . . . . . . . . . . . 1 . . . . . 1 . . . . . . . . . . . . . . ignore_repairs 1 | . . . . . . . . . . . . . . . . . . . . . . . . . 1 . . . . . . . . . . . . . . find_fabricator 1 | . . . . . . . . . . . . . . . . . . . . . . . . . . . . . . . 1 . . . . . . . . drop_inventory 15 | . . . . . . . . . . . . . 1 . . . . . 2 . 3 . . . . . . . 3 . 1 . 2 . 1 . 1 . 1 purge_threat 19 | . . . . . . . . . 2 . . . . . . . 6 . . . . . 2 . . . . . . . 3 . 2 . . . 4 . . find_terminals 1 | . . . . . . . . . 1 . . . . . . . . . . . . . . . . . . . . . . . . . . . . . . block_reporting 2 | . . . . . . . . . . . . . 1 . . . . . . . . . . . . . . . . . . . 1 . . . . . . map_route 2 | . . . . . . . . . . . . . . . . . . . . . . . . . . . . . . . . . . . . . . . 2 ignore_targets 12 | . . . . . . . . . . . . 6 . . . . . . . 6 . . . . . . . . . . . . . . . . . . . find_garrison 2 | . . . . . . . . . . . . . 1 . 1 . . . . . . . . . . . . . . . . . . . . . . . . scatter_targeting 1 | . . . . . . . . . . . . . . . . . . . . . . 1 . . . . . . . . . . . . . . . . . amplify_resonance 27 | . . . . . . . . . . . . . 2 . . 1 . 1 3 . 2 2 1 2 . . . . 1 2 1 2 1 1 . 2 1 . 2 wipe_record 1 | . . . . . . . . . . . . . . . . . . . . . . . . . . . . . 1 . . . . . . . . . . reboot_system 2 | . . . . . . . . . . . . . . . 1 . . . . . . . . . . . . . . . . . . . . 1 . . . overwrite_iff 23 | . . . . . . . . . . . . . . . . . 2 . 2 . 1 1 . . . . . . . 1 . 2 1 4 . . 1 7 1 formatsys_low 17 | . . . . . . . . . 1 . . . 2 . 1 . 2 . . . 1 . . . . . . . 1 . 1 . 4 . 1 . 2 . 1 formatsys_high 132 | . . . . . . . . . . 1 . . . . 1 3 . . 3 . 3 8 2 9 . . 1 4 7 12 7 13 5 10 2 7 10 9 15 Relay Couplers Released 264 | . . . . . . . . 7 . 15 3 . 4 13 . 17 3 32 . . 4 21 3 14 . . 3 18 3 17 3 19 . 25 . 16 4 19 1 Ejected 20 | . . . . . . . . . . . 3 . . . . . 3 . . . 4 . . . . . . . 3 . 3 . . . . . 4 . . Machine Destruction 220 | . . . . . . . . 3 . 12 . . . 9 . 17 . 32 . . . 21 . 14 . . . 18 . 17 . 19 . 22 . 16 . 19 1 Programmers 24 | . . . . . . . . 4 . 3 . . 4 4 . . . . . . . . 3 . . . 3 . . . . . . 3 . . . . . Attached 82 | . . . . . . . . . 1 3 . 1 2 . 2 4 2 5 3 . 5 8 3 7 . . 1 2 2 8 1 9 4 3 . . 1 2 3 Crosswired 56 | . . . . . . . . . . . . . . . . . . . . . . 9 1 4 . . 2 5 1 8 . 8 . 3 . 2 2 11 . Merged Code Value 390 | . . . . . . . . . . . . . . . . . . . . . . . . . . . . 21 6 91 11 57 . 80 . 35 7 82 . Fabnet Peak Effective % . | . . . . . . . . . . . . . . . . . . . . . . . . . . . . . . . . . . . . . . . . Robots Rewired 52 | . . . . . . . . 2 . . . . . . . . . . . . . . . 9 . . . 2 . 10 . 4 . 1 . 3 . 21 . Allies Hacked 14 | . . . . . . . . . . . . . . . . 2 . . . . . 1 . . . . . 1 1 . 1 . 1 1 . . 1 1 4 Hacks Repelled . | . . . . . . . . . . . . . . . . . . . . . . . . . . . . . . . . . . . . . . . . Allies | -11 -10 -10 -9 -9 -9 -8 -8 -8 -8 -8 -7 -7 -7 -7 -7 -7 -7 -7 -6 -6 -6 -6 -6 -6 -5 -5 -5 -5 -5 -5 -5 -5 -4 -4 -3 -3 -2 -2 -1 -------- Run | Yrd Mat Min Mat Min Exi Min Mat Gar Mat Gar Fac Was Fac Gar Fac Gar Fac Gar Fac Was Fac Gar Fac Gar Fac Was Fac Gar Fac Gar Fac Gar Fac Gar Res Gar Res Gar Acc Total Allies 310 | . . . . 3 . . . 2 1 2 . . 2 . 2 5 4 2 9 . 6 14 2 22 1 20 1 9 9 26 11 27 12 20 3 12 16 43 24 Largest Group 38 | . . . . 3 3 3 . 2 2 1 1 . 2 . 2 5 4 4 4 1 3 7 2 15 7 20 18 16 15 23 22 38 35 17 20 26 26 31 28 Highest-Rated Group 1745 | . . . . 40 40 40 . 56 56 85 85 . 36 . 55 277 100 212 65 29 92 231 122 423 321 764 664 571 714 869 798 1599 1505 825 967 1513 1458 1745 1554 Highest-Rated Ally 219 | . . . . 16 16 16 . 31 31 85 85 . 26 . 32 95 32 95 35 29 41 95 95 80 80 50 46 119 119 119 116 116 116 116 116 116 116 148 219 Total Orders 42 | . . . . . . . . . . . 2 . . . 1 1 1 . . . 2 . . 2 1 . . . 1 2 1 3 2 5 1 2 2 13 . STAY 8 | . . . . . . . . . . . 1 . . . . . . . . . 1 . . 1 . . . . 1 1 . . . . . . . 3 . ROAM 7 | . . . . . . . . . . . . . . . . . . . . . . . . . . . . . . . . 1 . 2 . . . 4 . FOLLOW 9 | . . . . . . . . . . . 1 . . . . . . . . . . . . 1 . . . . . 1 . 1 . . . . . 5 . AID 18 | . . . . . . . . . . . . . . . 1 1 1 . . . 1 . . . 1 . . . . . 1 1 2 3 1 2 2 1 . Ally Attacks 2397 | . . . . . . 14 . 3 13 25 . . . . 2 68 30 44 22 45 39 73 12 132 1 . 29 239 65 167 97 137 244 130 3 126 233 182 222 Total Damage 70961 | . . . . . . 133 . 25 168 1017 . . . . 131 2695 647 1238 243 656 859 2546 424 3103 24 . 702 5607 2127 5380 2404 3904 8025 4525 74 4677 6442 6350 6835 Kills 428 | . . . . . . 3 . . 2 7 . . . . 1 22 6 13 . . 10 19 3 28 . . 7 30 19 31 12 22 47 17 . 23 41 30 35 Allies Corrupted 8 | . . . . . . . . . . . . . . . . . . . . . . . 1 . . . . . . 1 . 1 . 1 . . . 3 1 Allies Melted 8 | . . . . . . . . . . 1 . . . . . . . . . . . . . . . 1 . 1 . 1 . . . . . . 2 2 . Field Lobotomies 3 | . . . . . . . . . . . . . . . . . . . . . . . . . . . . . . . . . . . . . . 1 2 Intel | -11 -10 -10 -9 -9 -9 -8 -8 -8 -8 -8 -7 -7 -7 -7 -7 -7 -7 -7 -6 -6 -6 -6 -6 -6 -5 -5 -5 -5 -5 -5 -5 -5 -4 -4 -3 -3 -2 -2 -1 ------- Run | Yrd Mat Min Mat Min Exi Min Mat Gar Mat Gar Fac Was Fac Gar Fac Gar Fac Gar Fac Was Fac Gar Fac Gar Fac Was Fac Gar Fac Gar Fac Gar Fac Gar Res Gar Res Gar Acc Robot Analysis Total 3 | . 1 . 1 . . . . . 1 . . . . . . . . . . . . . . . . . . . . . . . . . . . . . . Derelict Logs Recovered 1 | . . . . 1 . . . . . . . . . . . . . . . . . . . . . . . . . . . . . . . . . . . Drone Launches . | . . . . . . . . . . . . . . . . . . . . . . . . . . . . . . . . . . . . . . . . Drone Recoveries . | . . . . . . . . . . . . . . . . . . . . . . . . . . . . . . . . . . . . . . . . Exploration | -11 -10 -10 -9 -9 -9 -8 -8 -8 -8 -8 -7 -7 -7 -7 -7 -7 -7 -7 -6 -6 -6 -6 -6 -6 -5 -5 -5 -5 -5 -5 -5 -5 -4 -4 -3 -3 -2 -2 -1 ------------- Run | Yrd Mat Min Mat Min Exi Min Mat Gar Mat Gar Fac Was Fac Gar Fac Gar Fac Gar Fac Was Fac Gar Fac Gar Fac Was Fac Gar Fac Gar Fac Gar Fac Gar Res Gar Res Gar Acc Turns Passed 46046 | 80 1873 756 830 1318 632 1231 2635 1954 1183 1962 302 916 812 1155 863 1397 1260 1419 1073 781 1629 1655 399 1178 918 697 377 1793 803 1471 460 1530 1690 1770 433 1611 439 1763 998 Spaces Moved 19702 | 47 848 321 398 667 285 494 883 664 392 680 120 276 330 553 339 713 637 712 512 259 705 688 87 580 449 238 153 722 478 807 241 861 677 739 76 607 229 896 339 Core 3 | 3 . . . . . . . . . . . . . . . . . . . . . . . . . . . . . . . . . . . . . . . Treads 19699 | 44 848 321 398 667 285 494 883 664 392 680 120 276 330 553 339 713 637 712 512 259 705 688 87 580 449 238 153 722 478 807 241 861 677 739 76 607 229 896 339 Legs . | . . . . . . . . . . . . . . . . . . . . . . . . . . . . . . . . . . . . . . . . Wheels . | . . . . . . . . . . . . . . . . . . . . . . . . . . . . . . . . . . . . . . . . Hover . | . . . . . . . . . . . . . . . . . . . . . . . . . . . . . . . . . . . . . . . . Flight . | . . . . . . . . . . . . . . . . . . . . . . . . . . . . . . . . . . . . . . . . Fastest Speed 50 | 50 160 160 163 163 163 243 243 163 163 240 240 160 160 160 160 160 160 160 160 160 160 152 152 152 152 160 240 152 152 152 152 152 152 152 232 232 150 153 161 Average Speed 190 | 152 173 160 163 163 220 243 243 242 240 240 240 167 169 160 166 160 163 160 179 230 179 209 197 163 185 253 240 222 152 152 152 152 231 217 232 232 150 154 161 Slowest Speed 320 | 160 240 160 163 163 243 243 243 243 243 243 240 240 240 160 240 160 240 160 240 240 240 240 232 232 240 320 240 240 152 152 152 152 232 232 232 232 153 161 161 Overloaded Moves . | . . . . . . . . . . . . . . . . . . . . . . . . . . . . . . . . . . . . . . . . Propulsion Burnouts . | . . . . . . . . . . . . . . . . . . . . . . . . . . . . . . . . . . . . . . . . Robots Hopped 5 | . . . . . . . . . . . . . . . . . . . . . . . . . . . . . . 3 . . . . . . 2 . . Cave-ins Triggered 2 | . . . . . . . . . . . . . . . . . . . . . . . . . . . . . . . . . . . . . . 2 . Exploration Rate (%) 54 | 5 92 53 46 97 69 90 60 86 37 73 3 92 11 67 10 87 24 96 18 97 28 92 3 80 13 88 7 97 17 95 7 97 32 95 6 97 11 92 18 Regions Visited 39 Branch Regions 4 Pre-discovered Areas 7 | . 2 1 2 . 1 . 1 . . . . . . . . . . . . . . . . . . . . . . . . . . . . . . . . Known Exits Taken 13 | . . . . . . . 1 . 1 . . . 1 . 1 . 1 . . . 1 . 1 . . . 1 . 1 . 1 . 1 . 1 . 1 . . Unknown Exits Taken 7 | 1 1 1 1 1 1 1 . . . . . . . . . . . . . . . . . . . . . . . . . . . . . . . . . Scrap Searched 4 | . . . . 2 . 2 . . . . . . . . . . . . . . . . . . . . . . . . . . . . . . . . . Spaces Dug 91 | . . . . . . . 2 19 3 2 . . . 8 . . . . . . 5 . . . . . . . . 3 . 20 . . . 2 1 23 3 Terrain Destroyed 550 | . . 19 47 66 . 46 29 64 47 46 . . . 21 17 . 13 5 . . 28 8 1 . . 1 . . . 12 1 22 2 5 . 9 1 33 7 Melee . | . . . . . . . . . . . . . . . . . . . . . . . . . . . . . . . . . . . . . . . . Projectile 166 | . . . . . . 1 21 . 12 2 . . . . . . . . . . 28 8 1 . . 1 . . . 12 1 22 2 5 . 9 1 33 7 AOE 384 | . . 19 47 66 . 45 8 64 35 44 . . . 21 17 . 13 5 . . . . . . . . . . . . . . . . . . . . . Terrain Rammed . | . . . . . . . . . . . . . . . . . . . . . . . . . . . . . . . . . . . . . . . . Walls Destroyed . | . . . . . . . . . . . . . . . . . . . . . . . . . . . . . . . . . . . . . . . . Machines Disabled . | . . . . . . . . . . . . . . . . . . . . . . . . . . . . . . . . . . . . . . . . Actions | -11 -10 -10 -9 -9 -9 -8 -8 -8 -8 -8 -7 -7 -7 -7 -7 -7 -7 -7 -6 -6 -6 -6 -6 -6 -5 -5 -5 -5 -5 -5 -5 -5 -4 -4 -3 -3 -2 -2 -1 --------- Run | Yrd Mat Min Mat Min Exi Min Mat Gar Mat Gar Fac Was Fac Gar Fac Gar Fac Gar Fac Was Fac Gar Fac Gar Fac Was Fac Gar Fac Gar Fac Gar Fac Gar Res Gar Res Gar Acc Total 26369 | 52 1083 537 497 864 290 506 1200 873 550 903 136 574 545 692 578 898 799 867 619 350 918 857 275 763 534 331 166 912 550 1048 328 1073 786 903 330 808 318 1281 775 Wait 3336 | . 109 187 15 169 . . 188 44 83 93 11 101 165 49 188 70 91 44 44 16 75 22 151 42 35 45 6 93 44 84 48 92 52 44 242 107 17 144 326 Move 19661 | 46 847 320 397 666 284 493 883 663 392 679 120 275 329 552 339 712 636 711 512 258 704 687 86 579 449 237 152 721 477 801 240 860 676 738 76 606 225 895 338 Hop 3 | . . . . . . . . . . . . . . . . . . . . . . . . . . . . . . 2 . . . . . . 1 . . Pick Up 261 | . 7 9 10 3 2 1 6 7 4 12 2 6 4 6 1 14 2 12 5 2 7 20 2 14 3 4 3 10 3 19 1 8 2 16 1 8 4 20 1 Fast Attach 138 | 6 9 1 4 . . . 9 1 1 6 1 9 2 . 4 8 7 3 2 5 3 12 . 3 1 3 . 3 . 6 . 8 . 6 2 3 2 3 5 Attach 113 | . . . 3 1 1 . 5 3 2 12 1 . 4 1 . 1 1 4 4 1 6 12 2 9 6 . . . 1 7 1 4 5 4 1 1 1 5 4 Detach 55 | . 3 . 1 . 1 . 1 . 1 6 . 1 4 . 1 2 . 4 1 3 1 6 . 1 2 1 . . . 3 . 1 . 4 . 3 2 2 . Swap 279 | . 1 4 9 2 1 1 11 14 12 17 . 5 9 8 9 13 12 9 11 4 23 12 8 10 4 5 1 5 3 6 2 9 3 10 . . 6 8 12 Drop 248 | . 4 1 13 3 1 . 9 9 7 10 1 16 1 4 2 19 4 12 4 4 4 23 . 5 . 6 3 13 2 17 . 10 3 14 1 7 4 11 1 Fire 1931 | . 83 12 44 16 . 5 79 79 46 57 . 161 26 72 34 53 34 68 35 57 92 52 26 37 33 29 1 17 17 88 33 73 41 62 5 50 48 186 80 Melee . | . . . . . . . . . . . . . . . . . . . . . . . . . . . . . . . . . . . . . . . . Ram . | . . . . . . . . . . . . . . . . . . . . . . . . . . . . . . . . . . . . . . . . Kick . | . . . . . . . . . . . . . . . . . . . . . . . . . . . . . . . . . . . . . . . . Crush 83 | . 20 3 1 4 . 6 9 1 2 1 . . . . . . 10 . . . 1 1 . . 1 . . . 2 2 . 1 3 . . 2 5 1 7 Escape Stasis 56 | . . . . . . . . 10 . 10 . . . . . 2 . . . . . 4 . 2 . . . 12 . . . . . . . 16 . . . Rewire 205 | . . . . . . . . 42 . . . . 1 . . 4 2 . 1 . 2 6 . 61 . 1 . 38 1 13 3 7 1 5 2 5 3 6 1 Trap . | . . . . . . . . . . . . . . . . . . . . . . . . . . . . . . . . . . . . . . . . Miscellaneous . | . . . . . . . . . . . . . . . . . . . . . . . . . . . . . . . . . . . . . . . . Route ------- -11/Scrapyard -10/Materials (discovered 4 exits: *Mat x3 / *Min) -10/Mines (discovered 3 exits: *Mat x2 / [*Sub]) -9/Materials (discovered 2 exits: *Mat / *Min) -9/Mines (discovered 4 exits: *Mat x2 / *Exi / [*Zio]) -9/Exiles -8/Mines (discovered 2 exits: *Mat x2) -8/Materials (discovered 4 exits: *Fac x3 / Gar) -8/Garrison (discovered 3 exits: *Mat x3) -8/Materials (discovered 3 exits: *Fac x2 / Gar) -8/Garrison (discovered 3 exits: *Fac x3) -7/Factory (discovered 2 exits: Sto / Low) -7/Waste -7/Factory -7/Garrison (discovered 3 exits: *Fac x3) -7/Factory -7/Garrison (discovered 4 exits: *Fac x3 / *Fac) -7/Factory (discovered 4 exits: *Fac x2 / *Sto / Gar) -7/Garrison (discovered 3 exits: *Fac x3) -6/Factory -6/Waste -6/Factory (discovered 2 exits: *Fac / Gar) -6/Garrison (discovered 3 exits: *Fac x3) -6/Factory -6/Garrison (discovered 3 exits: *Fac x3) -5/Factory -5/Waste -5/Factory -5/Garrison (discovered 3 exits: *Fac x3) -5/Factory (discovered 2 exits: [*Upp] / Gar) -5/Garrison (discovered 4 exits: *Fac x3 / *Fac) -5/Factory -5/Garrison (discovered 3 exits: *Fac x3) -4/Factory (discovered 3 exits: *Res x2 / Gar) -4/Garrison (discovered 3 exits: *Res x3) -3/Research -3/Garrison (discovered 3 exits: *Res x3) -2/Research -2/Garrison (discovered 3 exits: *Acc x3) -1/Access To Epsilon Eridani History --------- Turn | Location | Event 12 | -11/Scrapyard | Discovered new exit (range 14) 81 | -11/Scrapyard | Entered Materials 330 | -10/Materials | Build established: Mutant 379 | -10/Materials | Discovered new exit (range 11) 724 | -10/Materials | Discovered new exit (range 10) 982 | -10/Materials | Discovered new exit (range 16) 1214 | -10/Materials | Discovered new exit (range 16) 1745 | -10/Materials | Repaired Lgt. Treads 1773 | -10/Materials | Repaired Assault Rifle 1954 | -10/Materials | Entered Mines 1959 | -10/Mines | Met a Derelict who couldn't figure out how to use a Trap Extractor 2306 | -10/Mines | Core integrity fell below 50% 2439 | -10/Mines | Discovered new exit (range 5) 2474 | -10/Mines | Discovered new exit (range 11) 2503 | -10/Mines | A weapon hastily lodged in a ceiling crevice suddenly fell to the ground 2559 | -10/Mines | Discovered new exit (range 5) 2592 | -10/Mines | YI-UF0 nonchalantly dropped a Grenade Launcher on the ground 2694 | -10/Mines | Murdered YI-UF0 2699 | -10/Mines | Found Prototype Launcher 2700 | -10/Mines | Identified YI-UF0's Doublenader 2710 | -10/Mines | Entered Materials 2710 | -9/Materials | Evolved 2 slots: Propulsion x1, Utility x1 3037 | -9/Materials | Discovered new exit (range 3) 3340 | -9/Materials | Discovered new exit (range 12) 3474 | -9/Materials | Learned Storage trap positions 3519 | -9/Materials | Learned location of Recycling (-7) 3540 | -9/Materials | Entered Mines 3546 | -9/Mines | Met a Derelict bent on vengeance 3601 | -9/Mines | Learned 2 Materials zone layouts 3646 | -9/Mines | Assembled infested the area 4114 | -9/Mines | Found a damaged Exp. Sensor Array with a note attached 4117 | -9/Mines | Found Prototype Device 4243 | -9/Mines | Assisted by bots powering up and referring to "LRC-V3" 4306 | -9/Mines | Discovered new exit (range 6) 4374 | -9/Mines | A Derelict revealed a hidden shortcut to a safe place 4477 | -9/Mines | Met a Derelict shopkeep closing up shop 4515 | -9/Mines | Discovered new exit (range 9) 4847 | -9/Mines | Deemed a non-threat by the Exiles lab entrance 4847 | -9/Mines | Discovered new exit (range 5) 4858 | -9/Mines | Entered Exiles 4858 | -9/Exiles | Accompanied by 3 allies 4904 | -9/Exiles | Met 8R-AWN 4932 | -9/Exiles | Met EX-HEX 5024 | -9/Exiles | Met EX-DEC 5068 | -9/Exiles | Learned location of Zion (-7) 5114 | -9/Exiles | Met EX-BIN 5148 | -9/Exiles | Aligned with FarCom system 5150 | -9/Exiles | Given EX-Vault access code 5211 | -9/Exiles | Opened EX-Vault 5223 | -9/Exiles | Found Field Lobotomy Kit 5239 | -9/Exiles | Found YOLO Cannon 5291 | -9/Exiles | Warned to stay clear of 0b10 Research branches 5463 | -9/Exiles | Discovered new exit (range 12) 5490 | -9/Exiles | Stole two prototypes: YOLO Cannon, Field Lobotomy Kit 5490 | -9/Exiles | Entered Mines 5490 | -8/Mines | Accompanied by 3 allies 5508 | -8/Mines | Discovered new exit (range 8) 5864 | -8/Mines | Discovered new exit (range 9) 6721 | -8/Mines | Entered Materials 6721 | -8/Materials | Evolved 2 slots: Utility x2 6722 | -8/Materials | Identified Exp. Sensor Array 8416 | -8/Materials | Lost 5 parts (1n3u1w) 8670 | -8/Materials | Discovered new exit (range 10) 9054 | -8/Materials | Learned location of Extension (-6) 9084 | -8/Materials | Identified exit to Factory 9105 | -8/Materials | Learned Storage stockpile data 9120 | -8/Materials | Learned location of 1 exit from Recycling 9121 | -8/Materials | Learned 8 Factory zone layouts 9159 | -8/Materials | Learned Factory trap positions 9218 | -8/Materials | Repaired Arm. Treads 9257 | -8/Materials | Repaired Hvy. Particle Cannon 9356 | -8/Materials | Identified exit to Garrison 9356 | -8/Materials | Entered Garrison 9464 | -8/Garrison | Triggered checkpoint 9496 | -8/Garrison | Triggered checkpoint 9500 | -8/Garrison | Triggered checkpoint 9836 | -8/Garrison | System corruption reached 10% 10016 | -8/Garrison | Discovered new exit (range 8) 10788 | -8/Garrison | Discovered new exit (range 8) 11259 | -8/Garrison | Installed Relay Interface Framework 11289 | -8/Garrison | Discovered new exit (range 10) 11310 | -8/Garrison | Entered Materials 11310 | -8/Materials | Accompanied by 2 allies 11549 | -8/Materials | Build established: Bothacker-Mutant 12045 | -8/Materials | Build established: Mutant 12132 | -8/Materials | Discovered exit to Factory (range 15) 12493 | -8/Materials | Identified exit to Garrison 12493 | -8/Materials | Entered Garrison 12546 | -8/Garrison | Triggered checkpoint 12626 | -8/Garrison | Expanded RIF knowledge: Patrol Navigation 12686 | -8/Garrison | Garrison Relay disabled 12779 | -8/Garrison | Triggered checkpoint 12781 | -8/Garrison | Triggered checkpoint 12839 | -8/Garrison | Core integrity fell below 50% 12889 | -8/Garrison | Destroyed 7 combat bots 12895 | -8/Garrison | Triggered checkpoint 13015 | -8/Garrison | Build established: Bothacker-Mutant 13131 | -8/Garrison | Rescued a captive Derelict 13188 | -8/Garrison | Discovered exit to Factory (range 9) 13263 | -8/Garrison | Triggered checkpoint 13436 | -8/Garrison | Discovered exit to Factory (range 10) 13461 | -8/Garrison | Triggered checkpoint 13783 | -8/Garrison | Expanded RIF knowledge: Signal Jamming 13790 | -8/Garrison | Spotted B-75 Beast 13814 | -8/Garrison | Assimilated Beast 3a with formatsys_high 13843 | -8/Garrison | Lost 3 parts (1p1n1u) 14047 | -8/Garrison | Discovered exit to Factory (range 13) 14109 | -8/Garrison | Triggered checkpoint 14119 | -8/Garrison | Build established: Scavenger-Mutant 14246 | -8/Garrison | Garrison Relay disabled 14283 | -8/Garrison | Garrison Relay disabled 14367 | -8/Garrison | Triggered checkpoint 14455 | -8/Garrison | Entered Factory 14455 | -7/Factory | Accompanied by 1 ally 14455 | -7/Factory | Evolved 2 slots: Propulsion x1, Utility x1 14456 | -7/Factory | Identified exit to Lower Caves 14457 | -7/Factory | Identified exit to Storage 14457 | -7/Factory | FarCom data flow suspended 14458 | -7/Factory | Loaded intel: 116 trap records 14568 | -7/Factory | Build established: Bothacker-Mutant 14757 | -7/Factory | Sucked down chute 14757 | -7/Factory | Entered Waste 14772 | -7/Waste | EMP discharged 14796 | -7/Waste | Spotted C-40 Crusher 14813 | -7/Waste | Spotted C-40 Crusher 14817 | -7/Waste | Spotted C-40 Crusher 14838 | -7/Waste | Spotted C-40 Crusher 14855 | -7/Waste | Destroyed C-40 Crusher 14866 | -7/Waste | Found Damper Plating 14872 | -7/Waste | EMP discharged 14960 | -7/Waste | Spotted C-40 Crusher 14972 | -7/Waste | EMP discharged 15034 | -7/Waste | Discovered new exit (range 13) 15067 | -7/Waste | Spotted C-40 Crusher 15072 | -7/Waste | EMP discharged 15172 | -7/Waste | EMP discharged 15264 | -7/Waste | Destroyed C-40 Crusher 15272 | -7/Waste | EMP discharged 15280 | -7/Waste | Destroyed C-40 Crusher 15307 | -7/Waste | Destroyed C-40 Crusher 15372 | -7/Waste | EMP discharged 15472 | -7/Waste | EMP discharged 15476 | -7/Waste | Destroyed C-40 Crusher 15572 | -7/Waste | EMP discharged 15599 | -7/Waste | Destroyed C-40 Crusher 15672 | -7/Waste | EMP discharged 15673 | -7/Waste | Entered Factory 16353 | -7/Factory | Identified exit to Garrison 16485 | -7/Factory | Entered Garrison 16535 | -7/Garrison | Triggered checkpoint 16746 | -7/Garrison | Triggered checkpoint 16746 | -7/Garrison | Triggered checkpoint 16826 | -7/Garrison | Destroyed 7 combat bots 16899 | -7/Garrison | Triggered checkpoint 16959 | -7/Garrison | Garrison Relay disabled 16988 | -7/Garrison | Discovered new exit (range 8) 17197 | -7/Garrison | Triggered checkpoint 17202 | -7/Garrison | Discovered new exit (range 10) 17287 | -7/Garrison | Triggered checkpoint 17352 | -7/Garrison | Discovered new exit (range 13) 17407 | -7/Garrison | Triggered checkpoint 17443 | -7/Garrison | Garrison Relay disabled 17461 | -7/Garrison | Garrison Relay disabled 17563 | -7/Garrison | Expanded RIF knowledge: Alert ID Control 17640 | -7/Garrison | Entered Factory 18040 | -7/Factory | First assault squad dispatched 18366 | -7/Factory | Garrison activated, responded to threat 18503 | -7/Factory | Identified exit to Garrison 18503 | -7/Factory | Entered Garrison 18503 | -7/Garrison | Accompanied by 2 allies 18623 | -7/Garrison | Triggered checkpoint 18657 | -7/Garrison | Garrison Relay disabled 18677 | -7/Garrison | Garrison Relay disabled 18725 | -7/Garrison | Found embedded Infiltrators 18873 | -7/Garrison | Triggered checkpoint 18884 | -7/Garrison | Triggered checkpoint 18885 | -7/Garrison | Triggered checkpoint 18897 | -7/Garrison | Triggered checkpoint 18972 | -7/Garrison | Build established: Botlord-Mutant 19013 | -7/Garrison | Triggered checkpoint 19061 | -7/Garrison | Triggered checkpoint 19088 | -7/Garrison | Garrison Relay disabled 19156 | -7/Garrison | Discovered new exit (range 12) 19159 | -7/Garrison | Spotted B-75 Beast 19192 | -7/Garrison | Allies destroyed B-75 Beast 19470 | -7/Garrison | Expanded RIF knowledge: Command Fork 19486 | -7/Garrison | Discovered new exit (range 3) 19519 | -7/Garrison | Triggered checkpoint 19541 | -7/Garrison | Garrison Relay disabled 19600 | -7/Garrison | Expanded RIF knowledge: Structural Interface 19736 | -7/Garrison | Discovered new exit (range 10) 19785 | -7/Garrison | Triggered checkpoint 19808 | -7/Garrison | Garrison Relay disabled 19884 | -7/Garrison | Discovered new exit (range 5) 19885 | -7/Garrison | Triggered checkpoint 19900 | -7/Garrison | Entered Factory 19900 | -7/Factory | Accompanied by 2 allies 20001 | -7/Factory | Discovered exit to Storage (range 7) 20328 | -7/Factory | Discovered new exit (range 8) 20402 | -7/Factory | Garrison activated, responded to threat 20637 | -7/Factory | Repaired Hvy. Treads 20700 | -7/Factory | First assault squad dispatched 20706 | -7/Factory | Repaired Hvy. Treads 20908 | -7/Factory | Discovered new exit (range 15) 21116 | -7/Factory | Lost 3 allies 21155 | -7/Factory | Identified exit to Garrison 21160 | -7/Factory | Entered Garrison 21160 | -7/Garrison | Accompanied by 2 allies 21174 | -7/Garrison | Triggered checkpoint 21210 | -7/Garrison | Found embedded Infiltrators 21278 | -7/Garrison | Triggered checkpoint 21335 | -7/Garrison | Triggered checkpoint 21337 | -7/Garrison | Garrison Relay disabled 21401 | -7/Garrison | Triggered checkpoint 21539 | -7/Garrison | Discovered new exit (range 14) 21670 | -7/Garrison | Triggered checkpoint 21705 | -7/Garrison | Garrison Relay disabled 21832 | -7/Garrison | Discovered new exit (range 10) 21886 | -7/Garrison | Triggered checkpoint 21892 | -7/Garrison | Core integrity fell below 50% 21952 | -7/Garrison | Garrison Relay disabled 22039 | -7/Garrison | System corruption reached 10% 22066 | -7/Garrison | Garrison Relay disabled 22082 | -7/Garrison | Garrison Relay disabled 22094 | -7/Garrison | Garrison Relay disabled 22094 | -7/Garrison | Garrison Relay disabled 22409 | -7/Garrison | Discovered new exit (range 15) 22437 | -7/Garrison | Expanded RIF knowledge: Zone Cloak 22482 | -7/Garrison | Triggered checkpoint 22513 | -7/Garrison | Garrison Relay disabled 22579 | -7/Garrison | Entered Factory 22579 | -6/Factory | Evolved 2 slots: Power x1, Utility x1 22760 | -6/Factory | Discovered new exit (range 21) 23279 | -6/Factory | First assault squad dispatched 23326 | -6/Factory | Lost 4 allies 23652 | -6/Factory | Sucked down chute 23652 | -6/Factory | Entered Waste 23657 | -6/Waste | 1 allies followed down the chute 23667 | -6/Waste | EMP discharged 23667 | -6/Waste | Spotted C-40 Crusher 23702 | -6/Waste | Spotted C-40 Crusher 23710 | -6/Waste | Spotted C-40 Crusher 23714 | -6/Waste | Spotted C-40 Crusher 23719 | -6/Waste | Spotted C-40 Crusher 23720 | -6/Waste | Spotted C-40 Crusher 23750 | -6/Waste | Destroyed C-40 Crusher 23761 | -6/Waste | Found Damper Plating 23767 | -6/Waste | EMP discharged 23796 | -6/Waste | Destroyed C-40 Crusher 23829 | -6/Waste | Destroyed C-40 Crusher 23850 | -6/Waste | Destroyed C-40 Crusher 23867 | -6/Waste | EMP discharged 23967 | -6/Waste | EMP discharged 23984 | -6/Waste | Destroyed C-40 Crusher 24014 | -6/Waste | Destroyed C-40 Crusher 24067 | -6/Waste | EMP discharged 24068 | -6/Waste | Discovered new exit (range 11) 24167 | -6/Waste | EMP discharged 24267 | -6/Waste | EMP discharged 24367 | -6/Waste | EMP discharged 24367 | -6/Waste | System corruption reached 10% 24433 | -6/Waste | Entered Factory 24742 | -6/Factory | Discovered new exit (range 16) 25842 | -6/Factory | Garrison activated, responded to threat 26047 | -6/Factory | Identified exit to Garrison 26062 | -6/Factory | Entered Garrison 26085 | -6/Garrison | Expanded RIF knowledge: Crosswire 26124 | -6/Garrison | Triggered checkpoint 26136 | -6/Garrison | Garrison Relay disabled 26258 | -6/Garrison | Triggered checkpoint 26268 | -6/Garrison | Triggered checkpoint 26288 | -6/Garrison | Triggered checkpoint 26290 | -6/Garrison | Triggered checkpoint 26384 | -6/Garrison | Triggered checkpoint 26409 | -6/Garrison | Lost 3 allies 26420 | -6/Garrison | Garrison Relay disabled 26522 | -6/Garrison | Found Unknown Hackware 26526 | -6/Garrison | Found Unknown Hackware 26537 | -6/Garrison | Lost 3 allies 26575 | -6/Garrison | Discovered new exit (range 10) 26599 | -6/Garrison | Garrison Relay disabled 26756 | -6/Garrison | Spotted B-75 Beast 26777 | -6/Garrison | Allies destroyed B-75 Beast 26860 | -6/Garrison | Identified Relay Coupler [Proto] (x2) 26992 | -6/Garrison | Triggered checkpoint 27039 | -6/Garrison | Garrison Relay disabled 27100 | -6/Garrison | Discovered new exit (range 12) 27141 | -6/Garrison | Found embedded Infiltrators 27328 | -6/Garrison | Triggered checkpoint 27449 | -6/Garrison | Discovered new exit (range 10) 27528 | -6/Garrison | Garrison Relay disabled 27580 | -6/Garrison | Expanded RIF knowledge: Threat Obfuscation 27717 | -6/Garrison | Entered Factory 27717 | -6/Factory | Accompanied by 1 ally 27806 | -6/Factory | Identified exit to Garrison 27956 | -6/Factory | Garrison activated, responded to threat 28034 | -6/Factory | Lost 3 parts (3u) 28116 | -6/Factory | Entered Garrison 28116 | -6/Garrison | Accompanied by 1 ally 28128 | -6/Garrison | Triggered checkpoint 28211 | -6/Garrison | Found Quantum Capacitor 28440 | -6/Garrison | Garrison Relay disabled 28460 | -6/Garrison | Triggered checkpoint 28541 | -6/Garrison | Lost 4 allies 28628 | -6/Garrison | Triggered checkpoint 28724 | -6/Garrison | Triggered checkpoint 28726 | -6/Garrison | Triggered checkpoint 28726 | -6/Garrison | Triggered checkpoint 28748 | -6/Garrison | Triggered checkpoint 28783 | -6/Garrison | Lost 3 parts (2u1w) 28783 | -6/Garrison | Lost 6 allies 28824 | -6/Garrison | Triggered checkpoint 28867 | -6/Garrison | Garrison Relay disabled 28888 | -6/Garrison | Discovered new exit (range 78) 28888 | -6/Garrison | Discovered new exit (range 74) 28888 | -6/Garrison | Discovered new exit (range 13) 29005 | -6/Garrison | Garrison Relay disabled 29031 | -6/Garrison | Build established: Commander-Mutant 29200 | -6/Garrison | Found embedded Infiltrators 29254 | -6/Garrison | Expanded RIF knowledge: Zone Cloak 29294 | -6/Garrison | Entered Factory 29294 | -5/Factory | Accompanied by 7 allies 29294 | -5/Factory | Evolved 2 slots: Utility x2 29431 | -5/Factory | Discovered new exit (range 12) 29736 | -5/Factory | Lost 4 allies 30102 | -5/Factory | Fabricated M-13 Machinist (x1) 30123 | -5/Factory | Build established: Botlord-Mutant 30212 | -5/Factory | Sucked down chute 30212 | -5/Factory | Entered Waste 30213 | -5/Waste | Joined by Warlord forces that had cleared the area 30778 | -5/Waste | Discovered new exit (range 12) 30909 | -5/Waste | Entered Factory 30909 | -5/Factory | Accompanied by 18 allies 31260 | -5/Factory | Identified exit to Garrison 31286 | -5/Factory | Entered Garrison 31286 | -5/Garrison | Accompanied by 16 allies 31394 | -5/Garrison | Triggered checkpoint 31397 | -5/Garrison | Triggered checkpoint 31417 | -5/Garrison | Triggered checkpoint 31444 | -5/Garrison | Lost 5 allies 31487 | -5/Garrison | Spotted Striker 31527 | -5/Garrison | Allies destroyed Striker 31534 | -5/Garrison | Rewired Executioner 31732 | -5/Garrison | Garrison Relay disabled 31824 | -5/Garrison | Triggered checkpoint 31910 | -5/Garrison | Found embedded Infiltrators 31920 | -5/Garrison | Triggered checkpoint 32014 | -5/Garrison | Triggered checkpoint 32080 | -5/Garrison | Garrison Relay disabled 32157 | -5/Garrison | Discovered new exit (range 14) 32326 | -5/Garrison | Triggered checkpoint 32345 | -5/Garrison | Spotted B-75 Beast 32403 | -5/Garrison | Lost 3 allies 32403 | -5/Garrison | Expanded RIF knowledge: Code Merge 32601 | -5/Garrison | Garrison Relay disabled 32701 | -5/Garrison | Discovered new exit (range 14) 32846 | -5/Garrison | Spotted B-75 Beast 32848 | -5/Garrison | Spotted B-75 Beast 32856 | -5/Garrison | Allies destroyed B-75 Beast 32866 | -5/Garrison | Allies destroyed B-75 Beast 32913 | -5/Garrison | Rewired B-75 Beast 32960 | -5/Garrison | Garrison Relay disabled 32997 | -5/Garrison | Discovered new exit (range 2) 33079 | -5/Garrison | Entered Factory 33079 | -5/Factory | Accompanied by 9 allies 33366 | -5/Factory | Discovered new exit (range 12) 33827 | -5/Factory | Identified exit to Garrison 33864 | -5/Factory | Cargo convoy interrupted 33882 | -5/Factory | Entered Garrison 33882 | -5/Garrison | Accompanied by 14 allies 33908 | -5/Garrison | Triggered checkpoint 33920 | -5/Garrison | Garrison Relay disabled 34032 | -5/Garrison | Lost 8 allies 34127 | -5/Garrison | Lost 5 allies 34128 | -5/Garrison | Spotted B-75 Beast 34142 | -5/Garrison | Destroyed B-75 Beast 34162 | -5/Garrison | Found Quantum Capacitor 34206 | -5/Garrison | Expanded RIF knowledge: Robot Detection 34238 | -5/Garrison | Triggered checkpoint 34242 | -5/Garrison | Triggered checkpoint 34244 | -5/Garrison | Triggered checkpoint 34286 | -5/Garrison | Triggered checkpoint 34308 | -5/Garrison | Triggered checkpoint 34334 | -5/Garrison | Triggered checkpoint 34348 | -5/Garrison | Garrison Relay disabled 34368 | -5/Garrison | Learned Factory security intel 34480 | -5/Garrison | Discovered new exit (range 13) 34511 | -5/Garrison | Spotted B-75 Beast 34523 | -5/Garrison | Destroyed B-75 Beast 34686 | -5/Garrison | Discovered new exit (range 4) 34758 | -5/Garrison | Triggered checkpoint 34775 | -5/Garrison | Garrison Relay disabled 34926 | -5/Garrison | Triggered checkpoint 34937 | -5/Garrison | Discovered new exit (range 5) 34947 | -5/Garrison | Spotted B-86 Titan 34952 | -5/Garrison | Destroyed B-86 Titan 34991 | -5/Garrison | Discovered new exit (range 9) 35024 | -5/Garrison | Triggered checkpoint 35041 | -5/Garrison | Garrison Relay disabled 35192 | -5/Garrison | Rewired B-86 Titan 35193 | -5/Garrison | Rewired B-75 Beast 35353 | -5/Garrison | Entered Factory 35353 | -5/Factory | Accompanied by 15 allies 35601 | -5/Factory | Fabricated M-13 Machinist? 35707 | -5/Factory | P-70 Sage assimilated allied IB-NT9(m) 35756 | -5/Factory | Garrison activated, responded to threat 35778 | -5/Factory | Identified exit to Garrison 35813 | -5/Factory | Entered Garrison 35813 | -5/Garrison | Accompanied by 21 allies 35829 | -5/Garrison | Triggered checkpoint 35859 | -5/Garrison | Triggered checkpoint 35862 | -5/Garrison | Garrison Relay disabled 36047 | -5/Garrison | Rescued a captive Derelict 36115 | -5/Garrison | Triggered checkpoint 36128 | -5/Garrison | Triggered checkpoint 36131 | -5/Garrison | Triggered checkpoint 36162 | -5/Garrison | Lost 4 allies 36181 | -5/Garrison | Triggered checkpoint 36195 | -5/Garrison | Garrison Relay disabled 36375 | -5/Garrison | Garrison Relay disabled 36391 | -5/Garrison | Triggered checkpoint 36404 | -5/Garrison | Build established: Commander-Mutant 36449 | -5/Garrison | Discovered new exit (range 12) 36462 | -5/Garrison | Expanded RIF knowledge: Watcher Feeds 36504 | -5/Garrison | Spotted B-86 Titan 36507 | -5/Garrison | Rewired B-75 Beast 36511 | -5/Garrison | Allies destroyed B-86 Titan 36526 | -5/Garrison | Found Quantum Capacitor 36690 | -5/Garrison | Garrison Relay disabled 36711 | -5/Garrison | Triggered checkpoint 36737 | -5/Garrison | Spotted Striker 36740 | -5/Garrison | Build established: Botlord-Mutant 36756 | -5/Garrison | Discovered new exit (range 14) 36950 | -5/Garrison | Discovered new exit (range 10) 36970 | -5/Garrison | Found embedded Infiltrators 37013 | -5/Garrison | Triggered checkpoint 37025 | -5/Garrison | Garrison Relay disabled 37183 | -5/Garrison | Build established: Commander-Mutant 37343 | -5/Garrison | Entered Factory 37343 | -4/Factory | Accompanied by 34 allies 37343 | -4/Factory | Evolved 2 slots: Utility x2 37441 | -4/Factory | Discovered new exit (range 26) 37511 | -4/Factory | Lost 4 allies 37938 | -4/Factory | Discovered new exit (range 30) 38042 | -4/Factory | Lost 8 allies 38310 | -4/Factory | Build established: Botlord-Mutant 38456 | -4/Factory | Lost 4 allies 38537 | -4/Factory | Found Exp. Targeting Computer 38995 | -4/Factory | Identified exit to Garrison 39033 | -4/Factory | Entered Garrison 39033 | -4/Garrison | Accompanied by 16 allies 39107 | -4/Garrison | Triggered checkpoint 39137 | -4/Garrison | Garrison Relay disabled 39167 | -4/Garrison | Expanded RIF knowledge: Hotswap 39259 | -4/Garrison | Triggered checkpoint 39260 | -4/Garrison | Spotted B-86 Titan 39267 | -4/Garrison | Triggered checkpoint 39269 | -4/Garrison | Assimilated Titan 7a with formatsys_high 39282 | -4/Garrison | Triggered checkpoint 39332 | -4/Garrison | Lost 10 allies 39462 | -4/Garrison | Lost 3 allies 39483 | -4/Garrison | Found Unknown Device 39483 | -4/Garrison | Identified Adv. Force Booster 39549 | -4/Garrison | Triggered checkpoint 39555 | -4/Garrison | Discovered new exit (range 14) 39715 | -4/Garrison | Triggered checkpoint 39726 | -4/Garrison | Garrison Relay disabled 40021 | -4/Garrison | Triggered checkpoint 40072 | -4/Garrison | Discovered new exit (range 11) 40089 | -4/Garrison | Rescued a captive Derelict 40091 | -4/Garrison | Rescued a captive Derelict 40156 | -4/Garrison | Garrison Relay disabled 40208 | -4/Garrison | Garrison Relay disabled 40313 | -4/Garrison | Spotted B-86 Titan 40315 | -4/Garrison | Spotted B-90 Cyclops 40318 | -4/Garrison | Destroyed B-86 Titan 40335 | -4/Garrison | Allies destroyed B-90 Cyclops 40365 | -4/Garrison | Rewired B-86 Titan 40629 | -4/Garrison | Triggered checkpoint 40669 | -4/Garrison | Garrison Relay disabled 40743 | -4/Garrison | Discovered new exit (range 13) 40803 | -4/Garrison | Entered Research 40803 | -3/Research | Accompanied by 17 allies 40803 | -3/Research | Evolved 2 slots: Power x1, Utility x1 40997 | -3/Research | Identified exit to Garrison 41236 | -3/Research | Entered Garrison 41236 | -3/Garrison | Accompanied by 20 allies 41236 | -3/Garrison | Spotted B-90 Cyclops 41251 | -3/Garrison | Destroyed B-90 Cyclops 41285 | -3/Garrison | Rewired B-86 Titan 41394 | -3/Garrison | Garrison Relay disabled 41412 | -3/Garrison | Triggered checkpoint 41456 | -3/Garrison | Rewired Striker 41461 | -3/Garrison | Rewired Striker 41573 | -3/Garrison | Spotted B-86 Titan 41580 | -3/Garrison | Destroyed B-86 Titan 41592 | -3/Garrison | Triggered checkpoint 41599 | -3/Garrison | Triggered checkpoint 41613 | -3/Garrison | Triggered checkpoint 41624 | -3/Garrison | Triggered checkpoint 41767 | -3/Garrison | Discovered new exit (range 12) 41772 | -3/Garrison | Triggered checkpoint 41797 | -3/Garrison | Garrison Relay disabled 42112 | -3/Garrison | Garrison Relay disabled 42138 | -3/Garrison | Triggered checkpoint 42183 | -3/Garrison | Discovered new exit (range 11) 42196 | -3/Garrison | Lost 4 allies 42630 | -3/Garrison | Triggered checkpoint 42630 | -3/Garrison | Expanded RIF knowledge: Threat Obfuscation 42686 | -3/Garrison | Garrison Relay disabled 42748 | -3/Garrison | Discovered new exit (range 13) 42847 | -3/Garrison | Entered Research 42847 | -2/Research | Accompanied by 20 allies 42847 | -2/Research | Evolved 2 slots: Propulsion x2 43016 | -2/Research | Lost 3 allies 43101 | -2/Research | Spotted B-90 Cyclops 43140 | -2/Research | Allies destroyed Striker 43140 | -2/Research | Allies destroyed B-90 Cyclops 43195 | -2/Research | Lost 11 allies 43258 | -2/Research | Identified exit to Garrison 43286 | -2/Research | Entered Garrison 43286 | -2/Garrison | Accompanied by 17 allies 43312 | -2/Garrison | Triggered checkpoint 43338 | -2/Garrison | Garrison Relay disabled 43437 | -2/Garrison | P-80 Master assimilated allied Terminator 9b 43438 | -2/Garrison | P-80 Master assimilated allied Warden 8d 43444 | -2/Garrison | Spotted B-90 Cyclops 43451 | -2/Garrison | Assimilated B-90 Cyclops with FLK Orb 43451 | -2/Garrison | Triggered checkpoint 43465 | -2/Garrison | Triggered checkpoint 43472 | -2/Garrison | Triggered checkpoint 43473 | -2/Garrison | Triggered checkpoint 43525 | -2/Garrison | Lost 14 allies 43546 | -2/Garrison | Triggered checkpoint 43556 | -2/Garrison | Garrison Relay disabled 43639 | -2/Garrison | Spotted B-75 Beast 43650 | -2/Garrison | Destroyed B-75 Beast 43671 | -2/Garrison | Rewired B-90 Cyclops 43672 | -2/Garrison | Rewired B-75 Beast 43804 | -2/Garrison | Found embedded Infiltrators 43817 | -2/Garrison | Discovered new exit (range 12) 43826 | -2/Garrison | Triggered checkpoint 43864 | -2/Garrison | Triggered checkpoint 43877 | -2/Garrison | Garrison Relay disabled 44166 | -2/Garrison | Triggered checkpoint 44252 | -2/Garrison | Expanded RIF knowledge: Threat Obfuscation 44409 | -2/Garrison | Discovered new exit (range 6) 44507 | -2/Garrison | Discovered new exit (range 10) 44528 | -2/Garrison | Triggered checkpoint 44532 | -2/Garrison | Triggered checkpoint 44596 | -2/Garrison | Garrison Relay disabled 44670 | -2/Garrison | Crushed by falling debris 44672 | -2/Garrison | Crushed by falling debris 44672 | -2/Garrison | System corruption reached 10% 44682 | -2/Garrison | Found Quantum Capacitor 44706 | -2/Garrison | Lost 5 parts (1p1n3u) 44864 | -2/Garrison | Garrison Relay disabled 45049 | -2/Garrison | Entered Access 45049 | -1/Access | Accompanied by 28 allies 45049 | -1/Access | Evolved 2 slots: Utility x2 45149 | -1/Access | Garrison activated, responded to threat 45186 | -1/Access | Lost 5 allies 45315 | -1/Access | Lost 5 allies 45346 | -1/Access | Lost 3 allies 45437 | -1/Access | Lost 6 allies 45491 | -1/Access | Lost 4 allies 45573 | -1/Access | Lost 6 allies 45728 | -1/Access | Spotted B-99 Colossus 45731 | -1/Access | Spotted B-99 Colossus 45733 | -1/Access | Lost 5 allies 45733 | -1/Access | Assimilated B-99 Colossus with FLK Orb 45736 | -1/Access | Assimilated B-99 Colossus with FLK Orb 45791 | -1/Access | Discovered new exit (range 4) 46047 | *** | Escaped! Last Messages --------------- 45791_ EXIT=FOUND 45815_ System corrupted: Matter fused (-5). 45830_ >> Watcher Feeds: Feed link from W-44 Eye lost. 45872_ System corrupted: Component data lost. 45894_ >> Watcher Feeds: Established visual feed link with W-44 Eye. 45894_ U-05 Engineer lays Concrete. 45900_ U-05 Engineer builds a Wall. 45905_ U-05 Engineer lays Concrete. 45906_ U-05 Engineer builds a Door. 45911_ System corrupted: Matter fused (-8). 45915_ U-05 Engineer lays Concrete. 45922_ U-05 Engineer builds a Wall. 45934_ System corrupted: Heat flow error (+291). 45942_ U-05 Engineer builds a Wall. 45947_ U-05 Engineer lays Concrete. 45951_ U-05 Engineer builds a Wall. 45962_ System corrupted: Heat flow error (+178). 45968_ >> Watcher Feeds: Feed link from W-44 Eye lost. 45999_ ALERT: Rogue bot located, Programmers report to Access Zone 2V. 46033_ System corrupted: IFF burst signal emitted. Map ----- +----------------------------------------------------+ | ?????????# ? * #??????????????????????????? | | ?????????# #??????######??????????????? | | ?????????# """""" ####### "#### ??????????? | | ?????????# """""" # % % ??????????? | | ?????????# """""" # * [ ?????????? | | ?????????# ["""""" " ?????????? | | ?????????# [%" " "% " ?????????? | | ?????????# = ! # # "#?????????????? | | ?????????# =% %% " #?? " ??????????? | | ????##########+######"" ####?? ???????????? | | ????# !%= #?# % #????? ????????????? | | ????#= !% #?# #??????????????????? | | ????# ! #?# #??????????????????? | | ????# #?# #??????????????????? | | ????# #?# #??????????????????? | | ????########/#####?# #??????????????????? | | ?????????# #????# %#??????????????????? | | ?????????# #????#""""""" ""#??????????????????? | | ?????????# #??????????" ""????????????????????? | | ?????????# #??????????"" "????????????????????? | | ?????????## ##????#"""""" """#??????????????????? | | ??????????# #?????# #??????????????????? | | ??????????#!=#?????# """""" #??????????????????? | | ??????????#|%#????????" " #??????????????????? | | ??????????#!!#????????" "" " #??????????????????? | | ?????????## #????????"ss@ " #??????????????????? | | ?????????#" ##???????" " #??????????????????? | | ?????????# !*=#????# "" """ #??????????????????? | | ?????????#%[% #????# #??????###########?? | | ?????????# ![=#????# ##?????# #?? | | ?????????# !%#????""""""""""""#?????# #?? | | ?????????## ##????#"" ##?????# " #?? | | ??????????# "#????#"" #??????# """ #?? | | ?#?######## ##????#"" #??????# """ #?? | | ?# # #?????#T #??????# " #?? | | ?# # #?????#"" #??##### ??? | | ?# " # #?????#"" #?## # ????? | | ?# """ # #######"" ###*!*# ###+####??? | | ?# """ " =[% %[%=! #??? | | ?# " #% [%=! ]!=*[%%/ #??? | | ?# # [################"###!#+# "#### #??? | | ?# #[%##############?###?#=![ #??# #### | | ?# #%=# #?????# #??# # [ | | ?#+#######"[=+ #?????# "" #??# # | | ?# #?????## [# #?????# ! "" #### # | | ?# #??????# # #?????# "" + # | | ?# #??????# # " #?????# ] S #### + " | | ?# #??????# # """" #?????# "" #??# # | | ?# #??????# # """"" #?????# "" #??# # | | ?# #??????# # """?? ! #?????# "" #??# # | +----------------------------------------------------+ Best States ------------- Heat Dissipation 159 Coolant Potential 180 Energy Generation 65 Energy Capacity 1500 Matter Stores 300 Matter Capacity 300 Sight Range 16 Terrain Scan Range 24 Terrain Scan Density 10 Base Temperature (-) 150 Corruption Block 8 Armor Coverage 1600 Resistance: KI 30 Resistance: TH 15 Resistance: EM 90 Phase Shifting 15 Evasion (%) 40 Targeting Accuracy 12 Recoil Reduction 6 Offensive Hacking 10 Relay Coupler Types 9 Relay Coupler Value 183 Authchip Count 1 Item Schematics ----------------- Force Field | -6/Factory | Hacked Robot Schematics ------------------ M-13 Machinist | -10/Materials | Hacked P-60 Hacker | -7/Factory | Hacked Fabricated ------------ M-13 Machinist | x1 | -5/Factory | Authchip M-13 Machinist | x1 | -5/Factory | Authchip Alien Tech Used ----------------- None Achievements -------------- None Challenges ------------ None Game ------ Seed ContainmentWarpGun Manual? 0 Play Time 04:45:28 Cumulative 576.7 hours Start 2025.01.14 @ 07:50:09 End 2025.01.15 @ 09:08:22 Sessions 15 Manual Loads 0 Difficulty Rogue Special Mode None Game No. 327 Rogue 327 Adventurer 0 Explorer 0 Win Type 0 Total 46 Types 31/4/5/1/1/0/2/1/1 Lore% 88 Gallery% 87 Achievement% 86 Wizard Run 0 Options --------- Layout 0 ASCII 0 Keyboard 1 Movement Numpad Keybinds 0 Fullscreen 2 Font 18/SmallcapsGlow Map View 76x50 Zoom Use 0% Tactical HUD 1 Map Filters NONE Filters NONE Steam 1 RUN: f8b71f7d-db4d-47a3-aa32-7b44d778376e